T,Company(T),Bvaser(T),Bvasdiv(T),Cipfa2(T),Cipfa3(T),Account,Account(T),Updated,TransNo,Amount,Montype(T),Supplier name,SuppID,Supplier group,TT,Period,Cat1,TC,Text
B,Bromsgrove District Council,Environmental Services,Cemeteries,Premise Related Expenditure,Cleaning and domestic supplies,B81,Cleaning and domestic supplies,07/08/2012,174545,2.26,Revenue income and expenditure,Initial Washroom Solutions Ltd.,5187,1,VN,201205,CE01,P1,
B,Bromsgrove District Council,Surpluses/deficits on trading undertakings,Depot Services,Premise Related Expenditure,Cleaning and domestic supplies,B81,Cleaning and domestic supplies,07/08/2012,174545,4.52,Revenue income and expenditure,Initial Washroom Solutions Ltd.,5187,1,VN,201205,DP02,P1,
B,Bromsgrove District Council,Surpluses/deficits on trading undertakings,Depot Services,Premise Related Expenditure,Cleaning and domestic supplies,B81,Cleaning and domestic supplies,07/08/2012,174545,122.79,Revenue income and expenditure,Initial Washroom Solutions Ltd.,5187,1,VN,201205,DW24,P1,
B,Bromsgrove District Council,Highways and transport services,Off-street Parking,Premise Related Expenditure,Cleaning and domestic supplies,B81,Cleaning and domestic supplies,07/08/2012,174545,5.38,Revenue income and expenditure,Initial Washroom Solutions Ltd.,5187,1,VN,201205,CP01,P1,
B,Bromsgrove District Council,Surpluses/deficits on trading undertakings,Depot Services,Premise Related Expenditure,Cleaning and domestic supplies,B81,Cleaning and domestic supplies,07/08/2012,174546,122.79,Revenue income and expenditure,Initial Washroom Solutions Ltd.,5187,1,VN,201205,DW24,P1,
B,Bromsgrove District Council,Highways and transport services,Off-street Parking,Premise Related Expenditure,Cleaning and domestic supplies,B81,Cleaning and domestic supplies,07/08/2012,174546,5.38,Revenue income and expenditure,Initial Washroom Solutions Ltd.,5187,1,VN,201205,CP01,P1,
B,Bromsgrove District Council,Environmental Services,Cemeteries,Premise Related Expenditure,Cleaning and domestic supplies,B81,Cleaning and domestic supplies,07/08/2012,174546,2.26,Revenue income and expenditure,Initial Washroom Solutions Ltd.,5187,1,VN,201205,CE01,P1,
B,Bromsgrove District Council,Surpluses/deficits on trading undertakings,Depot Services,Premise Related Expenditure,Cleaning and domestic supplies,B81,Cleaning and domestic supplies,07/08/2012,174546,4.52,Revenue income and expenditure,Initial Washroom Solutions Ltd.,5187,1,VN,201205,DP02,P1,
B,Bromsgrove District Council,Highways and transport services,Off-street Parking,Premise Related Expenditure,Cleaning and domestic supplies,B81,Cleaning and domestic supplies,07/08/2012,174547,5.38,Revenue income and expenditure,Initial Washroom Solutions Ltd.,5187,1,VN,201205,CP01,P1,
B,Bromsgrove District Council,Surpluses/deficits on trading undertakings,Depot Services,Premise Related Expenditure,Cleaning and domestic supplies,B81,Cleaning and domestic supplies,07/08/2012,174547,4.52,Revenue income and expenditure,Initial Washroom Solutions Ltd.,5187,1,VN,201205,DP02,P1,
B,Bromsgrove District Council,Environmental Services,Cemeteries,Premise Related Expenditure,Cleaning and domestic supplies,B81,Cleaning and domestic supplies,07/08/2012,174547,2.26,Revenue income and expenditure,Initial Washroom Solutions Ltd.,5187,1,VN,201205,CE01,P1,
B,Bromsgrove District Council,Surpluses/deficits on trading undertakings,Depot Services,Premise Related Expenditure,Cleaning and domestic supplies,B81,Cleaning and domestic supplies,07/08/2012,174547,122.79,Revenue income and expenditure,Initial Washroom Solutions Ltd.,5187,1,VN,201205,DW24,P1,
B,Bromsgrove District Council,Surpluses/deficits on trading undertakings,Depot Services,Premise Related Expenditure,Cleaning and domestic supplies,B81,Cleaning and domestic supplies,07/08/2012,174548,122.79,Revenue income and expenditure,Initial Washroom Solutions Ltd.,5187,1,VN,201205,DW24,P1,
B,Bromsgrove District Council,Surpluses/deficits on trading undertakings,Depot Services,Premise Related Expenditure,Cleaning and domestic supplies,B81,Cleaning and domestic supplies,07/08/2012,174548,4.52,Revenue income and expenditure,Initial Washroom Solutions Ltd.,5187,1,VN,201205,DP02,P1,
B,Bromsgrove District Council,Environmental Services,Cemeteries,Premise Related Expenditure,Cleaning and domestic supplies,B81,Cleaning and domestic supplies,07/08/2012,174548,2.26,Revenue income and expenditure,Initial Washroom Solutions Ltd.,5187,1,VN,201205,CE01,P1,
B,Bromsgrove District Council,Highways and transport services,Off-street Parking,Premise Related Expenditure,Cleaning and domestic supplies,B81,Cleaning and domestic supplies,07/08/2012,174548,5.38,Revenue income and expenditure,Initial Washroom Solutions Ltd.,5187,1,VN,201205,CP01,P1,
B,Bromsgrove District Council,Surpluses/deficits on trading undertakings,Depot Services,Premise Related Expenditure,Cleaning and domestic supplies,B81,Cleaning and domestic supplies,07/08/2012,174549,4.52,Revenue income and expenditure,Initial Washroom Solutions Ltd.,5187,1,VN,201205,DP02,P1,
B,Bromsgrove District Council,Highways and transport services,Off-street Parking,Premise Related Expenditure,Cleaning and domestic supplies,B81,Cleaning and domestic supplies,07/08/2012,174549,5.38,Revenue income and expenditure,Initial Washroom Solutions Ltd.,5187,1,VN,201205,CP02,P1,
B,Bromsgrove District Council,Environmental Services,Cemeteries,Premise Related Expenditure,Cleaning and domestic supplies,B81,Cleaning and domestic supplies,07/08/2012,174549,2.26,Revenue income and expenditure,Initial Washroom Solutions Ltd.,5187,1,VN,201205,CE01,P1,
B,Bromsgrove District Council,Surpluses/deficits on trading undertakings,Depot Services,Premise Related Expenditure,Cleaning and domestic supplies,B81,Cleaning and domestic supplies,07/08/2012,174549,122.79,Revenue income and expenditure,Initial Washroom Solutions Ltd.,5187,1,VN,201205,DW24,P1,
B,Bromsgrove District Council,Surpluses/deficits on trading undertakings,Depot Services,Premise Related Expenditure,Cleaning and domestic supplies,B81,Cleaning and domestic supplies,07/08/2012,174550,4.52,Revenue income and expenditure,Initial Washroom Solutions Ltd.,5187,1,VN,201205,DP02,P1,
B,Bromsgrove District Council,Highways and transport services,Off-street Parking,Premise Related Expenditure,Cleaning and domestic supplies,B81,Cleaning and domestic supplies,07/08/2012,174550,5.38,Revenue income and expenditure,Initial Washroom Solutions Ltd.,5187,1,VN,201205,CP01,P1,
B,Bromsgrove District Council,Surpluses/deficits on trading undertakings,Depot Services,Premise Related Expenditure,Cleaning and domestic supplies,B81,Cleaning and domestic supplies,07/08/2012,174550,122.79,Revenue income and expenditure,Initial Washroom Solutions Ltd.,5187,1,VN,201205,DW24,P1,
B,Bromsgrove District Council,Environmental Services,Cemeteries,Premise Related Expenditure,Cleaning and domestic supplies,B81,Cleaning and domestic supplies,07/08/2012,174550,2.26,Revenue income and expenditure,Initial Washroom Solutions Ltd.,5187,1,VN,201205,CE01,P1,
B,Bromsgrove District Council,Not BVACOP Service,Not BVACOP Sub Division,Current Assets,Stocks,300,Stock Movement,22/08/2012,174706,-48.70,,Greenham Trading Ltd,1285,1,CN,201205,XX611,P1,
B,Bromsgrove District Council,,,Supplies and Services,"Equipment, furniture and materials",D03,Equipment - rental/lease,02/08/2012,175077,25.20,Revenue income and expenditure,Angel Springs Ltd,8009,1,VO,201205,CC01,P1,
B,Bromsgrove District Council,Not BVACOP Service,Not BVACOP Sub Division,Current Assets,Stocks,300,Stock Movement,17/08/2012,175129,65.94,,Ultrasol,5459,1,VO,201205,XX611,P1,
B,Bromsgrove District Council,Not BVACOP Service,Not BVACOP Sub Division,Current Assets,Stocks,300,Stock Movement,17/08/2012,175154,175.80,,WasteParts UK Ltd,6508,1,VO,201205,XX611,P1,
B,Bromsgrove District Council,,,Supplies and Services,Communication and computing,D51,Printing and stationery,02/08/2012,175376,-7.28,Revenue income and expenditure,Office Depot UK Ltd,6249,1,CN,201205,CC01,P1,
B,Bromsgrove District Council,Cultural and Related Services,Museums and Gallaries,Supplies and Services,Miscellaneous expenses,D99,Workflow only - must change code before saving,03/08/2012,175557,24.15,Revenue income and expenditure,Daisy Communications,7578,1,VN,201205,MT91,P1,
B,Bromsgrove District Council,Surpluses/deficits on trading undertakings,Depot Services,Supplies and Services,"Equipment, furniture and materials",D01,Equipment - purchase,20/08/2012,175701,25.59,Revenue income and expenditure,Spaldings (UK) Ltd,1600,1,VO,201205,DP02,P1,
B,Bromsgrove District Council,Not BVACOP Service,Not BVACOP Sub Division,Current Assets,Stocks,300,Stock Movement,20/08/2012,175701,190.39,,Spaldings (UK) Ltd,1600,1,VO,201205,XX611,P1,
B,Bromsgrove District Council,Surpluses/deficits on trading undertakings,Depot Services,Supplies and Services,"Equipment, furniture and materials",D06,Materials - purchased,20/08/2012,175701,2.92,Revenue income and expenditure,Spaldings (UK) Ltd,1600,1,VO,201205,DW32,P1,
B,Bromsgrove District Council,,,Supplies and Services,"Equipment, furniture and materials",D03,Equipment - rental/lease,02/08/2012,175744,25.20,Revenue income and expenditure,Angel Springs Ltd,8009,1,VO,201205,CC01,P1,
B,Bromsgrove District Council,Surpluses/deficits on trading undertakings,Depot Services,Supplies and Services,Communication and computing,D56,Computer - hardware,14/08/2012,175833,328.00,Revenue income and expenditure,Probrand Limited,9439,1,VO,201205,DP07,P1,
B,Bromsgrove District Council,,,Supplies and Services,"Equipment, furniture and materials",D01,Equipment - purchase,09/08/2012,175835,"28,869.68",Revenue income and expenditure,Q-Matic UK Ltd,5989,1,VP,201205,CC01,P1,
B,Bromsgrove District Council,General Fund Housing Services,,Supplies and Services,Services,D47,Consultants' fees,07/08/2012,175942,"10,839.00",Revenue income and expenditure,Abritas Ltd,6390,1,VO,201205,HG38,P1,
B,Bromsgrove District Council,Surpluses/deficits on trading undertakings,Depot Services,Transport Related Expenditure,Contract Hire and operating leases,C31,Contract hire of vehicles,17/08/2012,175977,31.50,Revenue income and expenditure,Midland Road Springs,1440,1,VO,201205,DW11,P1,
B,Bromsgrove District Council,Planning and Development Services,Other Building control work,Supplies and Services,Miscellaneous expenses,D99,Workflow only - must change code before saving,09/08/2012,176019,110.00,Revenue income and expenditure,Barrie Beard Ltd,1050,2,VN,201205,BC00,P1,
B,Bromsgrove District Council,Planning and Development Services,Advice,Employees,Indirect Employee Expenses,A36,Employees' professional subscriptions,09/08/2012,176023,229.00,Revenue income and expenditure,Planning Officers Society,6033,1,VN,201205,DC00,P4,
B,Bromsgrove District Council,General Fund Housing Services,Homelessness Administration,Supplies and Services,Services,D47,Consultants' fees,02/08/2012,176040,120.00,Revenue income and expenditure,A. Victor Powell,2547,1,VP,201205,HG08,P1,
B,Bromsgrove District Council,Surpluses/deficits on trading undertakings,Depot Services,Supplies and Services,Services,D49,Miscellaneous services,08/08/2012,176059,4.95,Revenue income and expenditure,Royal Mail Group Plc,1558,1,VN,201205,DP02,P1,
B,Bromsgrove District Council,Surpluses/deficits on trading undertakings,Internal Business Units and Support Services,Third Party Payments,Other Local authorities,E31,Other local authorities,16/08/2012,176064,2.60,Revenue income and expenditure,Redditch Borough Council,1533,5,VN,201205,LA00,P1,
B,Bromsgrove District Council,Surpluses/deficits on trading undertakings,Internal Business Units and Support Services,Transport Related Expenditure,Public Transport,C44,Public transport,16/08/2012,176064,30.17,Revenue income and expenditure,Redditch Borough Council,1533,5,VN,201205,IT00,P1,
B,Bromsgrove District Council,,,Third Party Payments,Other Local authorities,E31,Other local authorities,16/08/2012,176064,"6,073.20",Revenue income and expenditure,Redditch Borough Council,1533,5,VN,201205,CC03,P1,
B,Bromsgrove District Council,,,Third Party Payments,Other Local authorities,E31,Other local authorities,16/08/2012,176064,"12,175.80",Revenue income and expenditure,Redditch Borough Council,1533,5,VN,201205,CD38,P1,
B,Bromsgrove District Council,,,Third Party Payments,Other Local authorities,E31,Other local authorities,16/08/2012,176064,14.45,Revenue income and expenditure,Redditch Borough Council,1533,5,VN,201205,CD36,P1,
B,Bromsgrove District Council,Surpluses/deficits on trading undertakings,Internal Business Units and Support Services,Third Party Payments,Other Local authorities,E31,Other local authorities,16/08/2012,176064,"10,840.88",Revenue income and expenditure,Redditch Borough Council,1533,5,VN,201205,FS04,P1,
B,Bromsgrove District Council,Surpluses/deficits on trading undertakings,Internal Business Units and Support Services,Supplies and Services,Communication and computing,D53,Postage/packaging,16/08/2012,176064,57.26,Revenue income and expenditure,Redditch Borough Council,1533,5,VN,201205,IT00,P1,
B,Bromsgrove District Council,,,Third Party Payments,Other Local authorities,E31,Other local authorities,16/08/2012,176064,53.76,Revenue income and expenditure,Redditch Borough Council,1533,5,VN,201205,CD46,P1,
B,Bromsgrove District Council,Surpluses/deficits on trading undertakings,Internal Business Units and Support Services,Supplies and Services,Catering,D23,Catering (incl.food purchases),16/08/2012,176064,7.20,Revenue income and expenditure,Redditch Borough Council,1533,5,VN,201205,IT00,P1,
B,Bromsgrove District Council,,,Third Party Payments,Other Local authorities,E31,Other local authorities,16/08/2012,176064,"15,658.72",Revenue income and expenditure,Redditch Borough Council,1533,5,VN,201205,CD45,P1,
B,Bromsgrove District Council,,,Third Party Payments,Other Local authorities,E31,Other local authorities,16/08/2012,176064,136.47,Revenue income and expenditure,Redditch Borough Council,1533,5,VN,201205,CD33,P1,
B,Bromsgrove District Council,Surpluses/deficits on trading undertakings,Internal Business Units and Support Services,Supplies and Services,Communication and computing,D57,Computer - software,16/08/2012,176064,"2,834.66",Revenue income and expenditure,Redditch Borough Council,1533,5,VN,201205,IT10,P1,
B,Bromsgrove District Council,Surpluses/deficits on trading undertakings,Internal Business Units and Support Services,Third Party Payments,Other Local authorities,E31,Other local authorities,16/08/2012,176064,"84,409.04",Revenue income and expenditure,Redditch Borough Council,1533,5,VN,201205,FS00,P1,
B,Bromsgrove District Council,Surpluses/deficits on trading undertakings,Depot Services,Employees,Direct Employee Expenses,A01,Monthly salaries (@ Cncl Hse),16/08/2012,176064,"10,323.00",Revenue income and expenditure,Redditch Borough Council,1533,5,VN,201205,BT01,P1,
B,Bromsgrove District Council,Surpluses/deficits on trading undertakings,Internal Business Units and Support Services,Supplies and Services,Communication and computing,D76,WAN links,16/08/2012,176064,"1,666.00",Revenue income and expenditure,Redditch Borough Council,1533,5,VN,201205,IT10,P1,
B,Bromsgrove District Council,Surpluses/deficits on trading undertakings,Internal Business Units and Support Services,Supplies and Services,Communication and computing,D59,Telephones,16/08/2012,176064,343.29,Revenue income and expenditure,Redditch Borough Council,1533,5,VN,201205,IT00,P1,
B,Bromsgrove District Council,Surpluses/deficits on trading undertakings,Internal Business Units and Support Services,Third Party Payments,Other Local authorities,E31,Other local authorities,16/08/2012,176064,237.98,Revenue income and expenditure,Redditch Borough Council,1533,5,VN,201205,FS06,P1,
B,Bromsgrove District Council,Surpluses/deficits on trading undertakings,Internal Business Units and Support Services,Supplies and Services,Communication and computing,D51,Printing and stationery,16/08/2012,176064,444.92,Revenue income and expenditure,Redditch Borough Council,1533,5,VN,201205,IT00,P1,
B,Bromsgrove District Council,,,Supplies and Services,Miscellaneous expenses,D87,Marketing/promotion/publicity,16/08/2012,176064,21.20,Revenue income and expenditure,Redditch Borough Council,1533,5,VN,201205,CD61,P1,
B,Bromsgrove District Council,,,Third Party Payments,Other Local authorities,E31,Other local authorities,16/08/2012,176064,"12,205.33",Revenue income and expenditure,Redditch Borough Council,1533,5,VN,201205,CD34,P1,
B,Bromsgrove District Council,,,Third Party Payments,Other Local authorities,E31,Other local authorities,16/08/2012,176064,150.00,Revenue income and expenditure,Redditch Borough Council,1533,5,VN,201205,CD43,P1,
B,Bromsgrove District Council,,,Third Party Payments,Other Local authorities,E31,Other local authorities,16/08/2012,176064,"16,160.29",Revenue income and expenditure,Redditch Borough Council,1533,5,VN,201205,CD42,P1,
B,Bromsgrove District Council,,,Third Party Payments,Other Local authorities,E31,Other local authorities,16/08/2012,176064,"11,966.54",Revenue income and expenditure,Redditch Borough Council,1533,5,VN,201205,CD32,P1,
B,Bromsgrove District Council,,,Third Party Payments,Other Local authorities,E31,Other local authorities,16/08/2012,176064,35.11,Revenue income and expenditure,Redditch Borough Council,1533,5,VN,201205,CD31,P1,
B,Bromsgrove District Council,,,Third Party Payments,Other Local authorities,E31,Other local authorities,16/08/2012,176064,"12,409.10",Revenue income and expenditure,Redditch Borough Council,1533,5,VN,201205,CD35,P1,
B,Bromsgrove District Council,,,Third Party Payments,Other Local authorities,E31,Other local authorities,16/08/2012,176064,"18,763.76",Revenue income and expenditure,Redditch Borough Council,1533,5,VN,201205,CC01,P1,
B,Bromsgrove District Council,General Fund Housing Services,Housing Strategy,Supplies and Services,Miscellaneous expenses,D87,Marketing/promotion/publicity,16/08/2012,176064,8.83,Revenue income and expenditure,Redditch Borough Council,1533,5,VN,201205,HG20,P1,
B,Bromsgrove District Council,,,Third Party Payments,Other Local authorities,E31,Other local authorities,16/08/2012,176064,957.14,Revenue income and expenditure,Redditch Borough Council,1533,5,VN,201205,CD37,P1,
B,Bromsgrove District Council,Surpluses/deficits on trading undertakings,Internal Business Units and Support Services,Supplies and Services,Communication and computing,D59,Telephones,16/08/2012,176064,956.45,Revenue income and expenditure,Redditch Borough Council,1533,5,VN,201205,IT10,P1,
B,Bromsgrove District Council,,,Supplies and Services,Communication and computing,D51,Printing and stationery,16/08/2012,176064,386.07,Revenue income and expenditure,Redditch Borough Council,1533,5,VN,201205,CD61,P1,
B,Bromsgrove District Council,,,Third Party Payments,Other Local authorities,E31,Other local authorities,16/08/2012,176064,"14,690.43",Revenue income and expenditure,Redditch Borough Council,1533,5,VN,201205,CD44,P1,
B,Bromsgrove District Council,Surpluses/deficits on trading undertakings,Depot Services,Transport Related Expenditure,Direct Transport Costs,C01,Vehicle repairs/maint'ce,10/08/2012,176075,103.38,Revenue income and expenditure,Bromsgrove Motor Factors,1091,1,VO,201205,DW21,P1,
B,Bromsgrove District Council,,,Supplies and Services,Communication and computing,D57,Computer - software,17/08/2012,176080,"3,000.00",Revenue income and expenditure,Capita Business Services Ltd,1107,1,VO,201205,RB03,P1,
B,Bromsgrove District Council,General Fund Housing Services,,Supplies and Services,Grants and subscriptions,D71,Grants,01/08/2012,176088,"3,750.00",Revenue income and expenditure,Bromsgrove District Housing Trust,2969,1,VO,201205,HG37,P1,
B,Bromsgrove District Council,General Fund Housing Services,,Supplies and Services,Grants and subscriptions,D71,Grants,01/08/2012,176089,"6,000.00",Revenue income and expenditure,Bromsgrove District Housing Trust,2969,1,VO,201205,HG37,P1,
B,Bromsgrove District Council,,,Supplies and Services,"Equipment, furniture and materials",D02,Equipment - maintenance,15/08/2012,176092,287.49,Revenue income and expenditure,Bon Air Mechanical & Electrical Services Ltd,7349,1,VO,201205,CC01,P1,
B,Bromsgrove District Council,Environmental Services,Public Toilets,Premise Related Expenditure,"Repairs, alterations and maint. of buildings",B04,Repair/maint'ce (CIS tax deductible),02/08/2012,176099,56.00,Revenue income and expenditure,M E S Electrical Services,8784,1,VP,201205,PC01,P4,
B,Bromsgrove District Council,Surpluses/deficits on trading undertakings,Depot Services,Premise Related Expenditure,"Repairs, alterations and maint. of buildings",B04,Repair/maint'ce (CIS tax deductible),02/08/2012,176099,399.00,Revenue income and expenditure,M E S Electrical Services,8784,1,VP,201205,DP02,P4,
B,Bromsgrove District Council,Environmental Services,Public Toilets,Premise Related Expenditure,"Repairs, alterations and maint. of buildings",B04,Repair/maint'ce (CIS tax deductible),02/08/2012,176099,91.00,Revenue income and expenditure,M E S Electrical Services,8784,1,VP,201205,PC03,P4,
B,Bromsgrove District Council,Surpluses/deficits on trading undertakings,Depot Services,Premise Related Expenditure,Water Services,B51,Water charges,15/08/2012,176103,"4,235.47",Revenue income and expenditure,Severn Trent Water,8934,1,VO,201205,DS61,P4,
B,Bromsgrove District Council,Surpluses/deficits on trading undertakings,Depot Services,Transport Related Expenditure,Contract Hire and operating leases,C31,Contract hire of vehicles,07/08/2012,176133,"1,860.00",Revenue income and expenditure,Priority Hire Ltd,9764,1,VO,201205,DW11,P1,
B,Bromsgrove District Council,Highways and transport services,Environ Maint - Other Roads,Supplies and Services,"Equipment, furniture and materials",D02,Equipment - maintenance,09/08/2012,176145,490.00,Revenue income and expenditure,Capitol Mobility Services Limited,4719,1,VO,201205,HW10,P1,
B,Bromsgrove District Council,,,Premise Related Expenditure,Cleaning and domestic supplies,B80,Contract cleaning,15/08/2012,176176,45.00,Revenue income and expenditure,Reflections,1537,1,VO,201205,CC01,P4,
B,Bromsgrove District Council,,,Supplies and Services,Communication and computing,D51,Printing and stationery,16/08/2012,176205,305.48,Revenue income and expenditure,Office Depot UK Ltd,6249,1,VO,201205,RB10,P1,
B,Bromsgrove District Council,Surpluses/deficits on trading undertakings,Depot Services,Transport Related Expenditure,Contract Hire and operating leases,C31,Contract hire of vehicles,09/08/2012,176209,"1,550.00",Revenue income and expenditure,Priority Hire Ltd,9764,1,VO,201205,DW11,P1,
B,Bromsgrove District Council,Surpluses/deficits on trading undertakings,Internal Business Units and Support Services,Premise Related Expenditure,Energy Costs,B23,Gas,03/08/2012,176222,"-1,236.52",Revenue income and expenditure,West Mercia Supplies,1703,1,CN,201205,ES20,P1,
B,Bromsgrove District Council,,,Operational Assets,Council Dwellings & Garage,100,Council Houses,22/08/2012,176237,925.00,Revenue income and expenditure,Morgan Hunt UK Ltd,9519,1,VP,201205,RB10,P1,
B,Bromsgrove District Council,Environmental Services,Community Safety (Crime Reduction),Third Party Payments,Other Local authorities,E31,Other local authorities,06/08/2012,176238,"108,390.69",Revenue income and expenditure,Redditch Borough Council,1533,5,VN,201205,CS23,P1,
B,Bromsgrove District Council,Environmental Services,Community Safety (Crime Reduction),Third Party Payments,Other Local authorities,E31,Other local authorities,06/08/2012,176238,"31,856.36",Revenue income and expenditure,Redditch Borough Council,1533,5,VN,201205,CS22,P1,
B,Bromsgrove District Council,Surpluses/deficits on trading undertakings,Depot Services,Transport Related Expenditure,Direct Transport Costs,C01,Vehicle repairs/maint'ce,07/08/2012,176240,100.75,Revenue income and expenditure,Imperial Commercials Ltd.,1403,1,VN,201205,DW11,P1,
B,Bromsgrove District Council,Central Services to the Public,Registration of Electors,Supplies and Services,Communication and computing,D53,Postage/packaging,02/08/2012,176242,"4,902.86",Revenue income and expenditure,Royal Mail Group Plc,1558,1,VN,201205,EL00,P3,
B,Bromsgrove District Council,Surpluses/deficits on trading undertakings,Internal Business Units and Support Services,Supplies and Services,Communication and computing,D51,Printing and stationery,14/08/2012,176243,-843.86,Revenue income and expenditure,Ricoh UK Ltd,6528,1,CN,201205,PS01,P1,
B,Bromsgrove District Council,Highways and transport services,Off-street Parking,Premise Related Expenditure,"Repairs, alterations and maint. of buildings",B02,External repair/maint. (reg'd for gross pay't),01/08/2012,176251,"1,535.40",Revenue income and expenditure,Parkeon Ltd,7764,1,VO,201205,CP00,P1,
B,Bromsgrove District Council,Surpluses/deficits on trading undertakings,Internal Business Units and Support Services,Supplies and Services,Catering,D22,Vending purchases/costs,01/08/2012,176255,192.19,Revenue income and expenditure,Complete Vending Services Ltd,1155,1,VO,201205,ES36,P4,
B,Bromsgrove District Council,Not BVACOP Service,Not BVACOP Sub Division,Current Assets,Stocks,300,Stock Movement,01/08/2012,176256,18.00,,PCS Jangro,7294,1,VO,201205,XX611,P1,
B,Bromsgrove District Council,Not BVACOP Service,Not BVACOP Sub Division,Current Assets,Stocks,300,Stock Movement,01/08/2012,176257,806.46,,PCS Jangro,7294,1,VO,201205,XX611,P1,
B,Bromsgrove District Council,Highways and transport services,Off-street Parking,Supplies and Services,"Equipment, furniture and materials",D03,Equipment - rental/lease,07/08/2012,176260,424.68,Revenue income and expenditure,Ricoh UK Ltd,6528,1,VN,201205,CP00,P1,
B,Bromsgrove District Council,Surpluses/deficits on trading undertakings,Internal Business Units and Support Services,Supplies and Services,"Equipment, furniture and materials",D03,Equipment - rental/lease,14/08/2012,176261,"1,235.77",Revenue income and expenditure,Ricoh UK Ltd,6528,1,VN,201205,PS01,P1,
B,Bromsgrove District Council,Surpluses/deficits on trading undertakings,Internal Business Units and Support Services,Supplies and Services,Communication and computing,D51,Printing and stationery,14/08/2012,176262,444.79,Revenue income and expenditure,Ricoh UK Ltd,6528,1,VN,201205,PS01,P1,
B,Bromsgrove District Council,Surpluses/deficits on trading undertakings,Internal Business Units and Support Services,Supplies and Services,Communication and computing,D51,Printing and stationery,14/08/2012,176263,336.61,Revenue income and expenditure,Ricoh UK Ltd,6528,1,VN,201205,PS01,P1,
B,Bromsgrove District Council,Surpluses/deficits on trading undertakings,Internal Business Units and Support Services,Supplies and Services,Communication and computing,D51,Printing and stationery,14/08/2012,176264,537.29,Revenue income and expenditure,Ricoh UK Ltd,6528,1,VN,201205,PS01,P1,
B,Bromsgrove District Council,Surpluses/deficits on trading undertakings,Internal Business Units and Support Services,Supplies and Services,Communication and computing,D51,Printing and stationery,14/08/2012,176265,224.73,Revenue income and expenditure,Ricoh UK Ltd,6528,1,VN,201205,PS01,P1,
B,Bromsgrove District Council,,,Supplies and Services,Communication and computing,D50,Debt Collection Fees,03/08/2012,176267,60.13,Revenue income and expenditure,Bristow & Sutor,1085,1,VN,201205,RB10,P1,
B,Bromsgrove District Council,Surpluses/deficits on trading undertakings,Internal Business Units and Support Services,Supplies and Services,Communication and computing,D50,Debt Collection Fees,08/08/2012,176268,141.77,Revenue income and expenditure,Bristow & Sutor,1085,1,VN,201205,FS08,P1,
B,Bromsgrove District Council,,,Supplies and Services,Communication and computing,D50,Debt Collection Fees,03/08/2012,176269,50.58,Revenue income and expenditure,Bristow & Sutor,1085,1,VN,201205,RB10,P1,
B,Bromsgrove District Council,,,Third Party Payments,Other Local authorities,E31,Other local authorities,02/08/2012,176270,"11,205.33",Revenue income and expenditure,Wyre Forest District Council,4809,5,VN,201205,MH04,P1,
B,Bromsgrove District Council,Planning and Development Services,Support to business and enterprise,Third Party Payments,Other Local authorities,E31,Other local authorities,02/08/2012,176270,"22,771.50",Revenue income and expenditure,Wyre Forest District Council,4809,5,VN,201205,ED71,P1,
B,Bromsgrove District Council,,,Third Party Payments,Joint Authorities,E21,Joint authorities,02/08/2012,176270,232.85,Revenue income and expenditure,Wyre Forest District Council,4809,5,VN,201205,MH04,P1,
B,Bromsgrove District Council,Planning and Development Services,Support to business and enterprise,Third Party Payments,Joint Authorities,E21,Joint authorities,02/08/2012,176270,468.82,Revenue income and expenditure,Wyre Forest District Council,4809,5,VN,201205,ED71,P1,
B,Bromsgrove District Council,Central Services to the Public,Conducting Elections,Premise Related Expenditure,Rents,B31,Room hire,02/08/2012,176273,200.00,Revenue income and expenditure,"Redditch YMCA, Church Hill Community Centre",6759,5,VP,201205,EL10,P3,
B,Bromsgrove District Council,Highways and transport services,Off-street Parking,Supplies and Services,Communication and computing,D50,Debt Collection Fees,01/08/2012,176274,1.35,Revenue income and expenditure,Bristow & Sutor,1085,1,VO,201205,CP00,P1,
B,Bromsgrove District Council,Surpluses/deficits on trading undertakings,Depot Services,Supplies and Services,"Equipment, furniture and materials",D06,Materials - purchased,02/08/2012,176275,124.65,Revenue income and expenditure,Sunlight Service Group,9560,1,VO,201205,DT41,P1,
B,Bromsgrove District Council,Surpluses/deficits on trading undertakings,Depot Services,Supplies and Services,"Equipment, furniture and materials",D06,Materials - purchased,02/08/2012,176276,396.00,Revenue income and expenditure,Sunlight Service Group,9560,1,VP,201205,DT41,P1,
B,Bromsgrove District Council,Environmental Services,Recycling,Supplies and Services,Services,D48,Contractors' fees/charges/SLA's,02/08/2012,176277,757.85,Revenue income and expenditure,Waste Away Solutions Ltd,1374,1,VO,201205,EH06,P1,
B,Bromsgrove District Council,Surpluses/deficits on trading undertakings,Depot Services,Transport Related Expenditure,Direct Transport Costs,C01,Vehicle repairs/maint'ce,01/08/2012,176278,18.08,Revenue income and expenditure,JNL Engineering Ltd,10012,1,VO,201205,DW21,P1,
B,Bromsgrove District Council,Surpluses/deficits on trading undertakings,Depot Services,Supplies and Services,"Equipment, furniture and materials",D06,Materials - purchased,02/08/2012,176279,100.00,Revenue income and expenditure,Vision Techniques (U.K.)  Ltd,3412,1,VO,201205,DW11,P1,
B,Bromsgrove District Council,Planning and Development Services,Advice,Supplies and Services,Miscellaneous expenses,D88,Miscellaneous expenses,02/08/2012,176282,196.80,Revenue income and expenditure,TMP (UK) Ltd,1646,1,VN,201205,DC00,P1,
B,Bromsgrove District Council,Planning and Development Services,Advice,Supplies and Services,Miscellaneous expenses,D88,Miscellaneous expenses,02/08/2012,176283,269.60,Revenue income and expenditure,TMP (UK) Ltd,1646,1,VN,201205,DC00,P1,
B,Bromsgrove District Council,Planning and Development Services,Other Building control work,Supplies and Services,Communication and computing,D51,Printing and stationery,02/08/2012,176288,10.26,Revenue income and expenditure,Office Depot UK Ltd,6249,1,VO,201205,BC00,P1,
B,Bromsgrove District Council,Not BVACOP Service,Not BVACOP Sub Division,Current Assets,Stocks,300,Stock Movement,02/08/2012,176290,154.68,,Arco Ltd,1027,1,VO,201205,XX611,P1,
B,Bromsgrove District Council,Surpluses/deficits on trading undertakings,Internal Business Units and Support Services,Supplies and Services,Communication and computing,D56,Computer - hardware,02/08/2012,176291,5.42,Revenue income and expenditure,Insight Direct (UK) Ltd,1350,1,VP,201205,IT10,P1,
B,Bromsgrove District Council,Surpluses/deficits on trading undertakings,Internal Business Units and Support Services,Supplies and Services,Communication and computing,D56,Computer - hardware,02/08/2012,176292,1.09,Revenue income and expenditure,Insight Direct (UK) Ltd,1350,1,VP,201205,IT10,P1,
B,Bromsgrove District Council,Surpluses/deficits on trading undertakings,Internal Business Units and Support Services,Supplies and Services,Communication and computing,D56,Computer - hardware,02/08/2012,176293,22.68,Revenue income and expenditure,Insight Direct (UK) Ltd,1350,1,VP,201205,IT10,P1,
B,Bromsgrove District Council,Surpluses/deficits on trading undertakings,Internal Business Units and Support Services,Supplies and Services,Communication and computing,D56,Computer - hardware,02/08/2012,176294,19.52,Revenue income and expenditure,Insight Direct (UK) Ltd,1350,1,VP,201205,IT10,P1,
B,Bromsgrove District Council,Cultural and Related Services,Outdoor sports and recreation facilities,Current Assets,Stocks,300,Stock Movement,02/08/2012,176295,19.17,Revenue income and expenditure,Spaldings (UK) Ltd,1600,1,VO,201205,PA01,P1,
B,Bromsgrove District Council,Surpluses/deficits on trading undertakings,Internal Business Units and Support Services,Supplies and Services,Communication and computing,D56,Computer - hardware,02/08/2012,176296,40.40,Revenue income and expenditure,Probrand Limited,9439,1,VP,201205,IT10,P1,
B,Bromsgrove District Council,,,Premise Related Expenditure,Cleaning and domestic supplies,B81,Cleaning and domestic supplies,02/08/2012,176299,22.64,Revenue income and expenditure,Initial Washroom Solutions Ltd.,5187,1,VO,201205,CC01,P1,
B,Bromsgrove District Council,Surpluses/deficits on trading undertakings,Internal Business Units and Support Services,Supplies and Services,Services,D43,Training fees,02/08/2012,176301,932.24,Revenue income and expenditure,Local Government Information Unit,1842,1,VO,201205,PS08,P1,
B,Bromsgrove District Council,Not BVACOP Service,Not BVACOP Sub Division,Current Assets,Stocks,300,Stock Movement,02/08/2012,176302,90.40,,Dennis Eagle Ltd,1191,1,VO,201205,XX611,P1,
B,Bromsgrove District Council,Surpluses/deficits on trading undertakings,Internal Business Units and Support Services,Supplies and Services,Services,D47,Consultants' fees,06/08/2012,176304,440.00,Revenue income and expenditure,Bevan Brittan LLP,5549,1,VO,201205,LS00,P1,
B,Bromsgrove District Council,Surpluses/deficits on trading undertakings,Internal Business Units and Support Services,Supplies and Services,Services,D47,Consultants' fees,02/08/2012,176305,"1,890.00",Revenue income and expenditure,NextiraOne Uk Ltd,4867,1,VP,201205,IT12,P1,
B,Bromsgrove District Council,Surpluses/deficits on trading undertakings,Internal Business Units and Support Services,Transport Related Expenditure,Contract Hire and operating leases,C32,Courier and transport services,02/08/2012,176306,90.00,Revenue income and expenditure,Bromsgrove Bus & Coach Company,5238,1,VO,201205,LS05,P4,
B,Bromsgrove District Council,General Fund Housing Services,Housing Strategy,Third Party Payments,Private Contractors,E71,BDHT - management fee,02/08/2012,176307,"4,057.47",Revenue income and expenditure,Bromsgrove District Housing Trust,2969,1,VO,201205,HG20,P1,
B,Bromsgrove District Council,General Fund Housing Services,Other temporary Accommodation,Third Party Payments,Private Contractors,E71,BDHT - management fee,02/08/2012,176308,"3,562.94",Revenue income and expenditure,Bromsgrove District Housing Trust,2969,1,VO,201205,HG23,P1,
B,Bromsgrove District Council,General Fund Housing Services,Homelessness Administration,Third Party Payments,Private Contractors,E71,BDHT - management fee,02/08/2012,176309,"17,817.87",Revenue income and expenditure,Bromsgrove District Housing Trust,2969,1,VO,201205,HG08,P1,
B,Bromsgrove District Council,General Fund Housing Services,Other temporary Accommodation,Premise Related Expenditure,Energy Costs,B22,Electricity,02/08/2012,176310,62.26,Revenue income and expenditure,Bromsgrove District Housing Trust,2969,1,VO,201205,HG19,P1,
B,Bromsgrove District Council,Environmental Services,Recycling,Supplies and Services,Services,D48,Contractors' fees/charges/SLA's,02/08/2012,176312,368.12,Revenue income and expenditure,Smurfit Kappa Recycling,1375,1,VP,201205,EH06,P1,
B,Bromsgrove District Council,Not BVACOP Service,Not BVACOP Sub Division,Supplies and Services,Miscellaneous expenses,D99,Workflow only - must change code before saving,06/08/2012,176314,269.45,Revenue income and expenditure,LexisNexis Butterworths,1989,1,VN,201205,RB99,P4,
B,Bromsgrove District Council,Planning and Development Services,Advice,Supplies and Services,Services,D47,Consultants' fees,02/08/2012,176315,300.00,Revenue income and expenditure,A D Horner Ltd,1323,1,VN,201205,DC00,P1,
B,Bromsgrove District Council,Surpluses/deficits on trading undertakings,Internal Business Units and Support Services,Supplies and Services,Communication and computing,D51,Printing and stationery,14/08/2012,176317,481.95,Revenue income and expenditure,Stanford Marsh Ltd,1607,1,VO,201205,PS01,P1,
B,Bromsgrove District Council,,,Premise Related Expenditure,Cleaning and domestic supplies,B80,Contract cleaning,02/08/2012,176318,18.00,Revenue income and expenditure,We Clean Ltd,2966,1,VO,201205,CC01,P1,
B,Bromsgrove District Council,Surpluses/deficits on trading undertakings,Depot Services,Transport Related Expenditure,Direct Transport Costs,C01,Vehicle repairs/maint'ce,02/08/2012,176319,50.00,Revenue income and expenditure,Imperial Commercials Ltd.,1403,1,VO,201205,DW32,P1,
B,Bromsgrove District Council,Surpluses/deficits on trading undertakings,Depot Services,Supplies and Services,"Equipment, furniture and materials",D06,Materials - purchased,02/08/2012,176321,515.00,Revenue income and expenditure,Rigby Taylor Ltd,1546,1,VO,201205,DW32,P1,
B,Bromsgrove District Council,,,Operational Assets,Council Dwellings & Garage,100,Council Houses,22/08/2012,176322,925.00,Revenue income and expenditure,Morgan Hunt UK Ltd,9519,1,VP,201205,RB10,P1,
B,Bromsgrove District Council,,,Supplies and Services,Communication and computing,D53,Postage/packaging,10/08/2012,176323,"1,172.04",Revenue income and expenditure,Royal Mail Group Plc,1558,1,VN,201205,RB03,P1,
B,Bromsgrove District Council,Surpluses/deficits on trading undertakings,Depot Services,Employees,Direct Employee Expenses,A10,Agency workers,02/08/2012,176325,"5,296.36",Revenue income and expenditure,Matrix SCM Ltd,9043,1,VN,201205,DW11,P1,
B,Bromsgrove District Council,Surpluses/deficits on trading undertakings,Depot Services,Employees,Direct Employee Expenses,A10,Agency workers,02/08/2012,176325,504.60,Revenue income and expenditure,Matrix SCM Ltd,9043,1,VN,201205,DW32,P1,
B,Bromsgrove District Council,Planning and Development Services,Advice,Employees,Direct Employee Expenses,A10,Agency workers,02/08/2012,176325,757.19,Revenue income and expenditure,Matrix SCM Ltd,9043,1,VN,201205,DC00,P1,
B,Bromsgrove District Council,Surpluses/deficits on trading undertakings,Depot Services,Employees,Direct Employee Expenses,A10,Agency workers,02/08/2012,176325,729.72,Revenue income and expenditure,Matrix SCM Ltd,9043,1,VN,201205,DT41,P1,
B,Bromsgrove District Council,Surpluses/deficits on trading undertakings,Depot Services,Employees,Direct Employee Expenses,A10,Agency workers,02/08/2012,176325,85.02,Revenue income and expenditure,Matrix SCM Ltd,9043,1,VN,201205,DW27,P1,
B,Bromsgrove District Council,Surpluses/deficits on trading undertakings,Depot Services,Employees,Direct Employee Expenses,A10,Agency workers,02/08/2012,176325,364.42,Revenue income and expenditure,Matrix SCM Ltd,9043,1,VN,201205,DW14,P1,
B,Bromsgrove District Council,Surpluses/deficits on trading undertakings,Depot Services,Employees,Direct Employee Expenses,A10,Agency workers,02/08/2012,176325,"1,009.71",Revenue income and expenditure,Matrix SCM Ltd,9043,1,VN,201205,DW21,P1,
B,Bromsgrove District Council,General Fund Housing Services,,Supplies and Services,Grants and subscriptions,D71,Grants,07/08/2012,176329,"15,000.00",Revenue income and expenditure,St Basils,9200,1,VO,201205,HG37,P5,
B,Bromsgrove District Council,Central Services to the Public,Registration of Electors,Supplies and Services,Communication and computing,D53,Postage/packaging,08/08/2012,176338,"1,223.32",Revenue income and expenditure,Royal Mail Group Plc,1558,1,VN,201205,EL00,P1,
B,Bromsgrove District Council,Surpluses/deficits on trading undertakings,Internal Business Units and Support Services,Supplies and Services,Miscellaneous expenses,D99,Workflow only - must change code before saving,08/08/2012,176339,211.46,Revenue income and expenditure,Royal Mail Group Plc,1558,1,VN,201205,LS05,P3,
B,Bromsgrove District Council,Highways and transport services,Off-street Parking,Supplies and Services,Communication and computing,D76,WAN links,09/08/2012,176340,"1,191.88",Revenue income and expenditure,British Telecommunications plc,1098,1,VN,201205,CP00,P1,
B,Bromsgrove District Council,Surpluses/deficits on trading undertakings,Internal Business Units and Support Services,Supplies and Services,Communication and computing,D76,WAN links,13/08/2012,176341,"3,116.12",Revenue income and expenditure,British Telecommunications plc,1098,1,VN,201205,IT12,P1,
B,Bromsgrove District Council,Surpluses/deficits on trading undertakings,Internal Business Units and Support Services,Supplies and Services,Communication and computing,D76,WAN links,13/08/2012,176341,"3,116.12",Revenue income and expenditure,British Telecommunications plc,1098,1,VN,201205,IT10,P1,
B,Bromsgrove District Council,Surpluses/deficits on trading undertakings,Depot Services,Supplies and Services,"Clothes, uniform and laundry",D31,Clothing and uniforms,08/08/2012,176343,49.50,Revenue income and expenditure,Focal Image,1252,1,VO,201205,DW32,P4,
B,Bromsgrove District Council,Surpluses/deficits on trading undertakings,Internal Business Units and Support Services,Supplies and Services,"Clothes, uniform and laundry",D31,Clothing and uniforms,07/08/2012,176344,20.84,Revenue income and expenditure,Focal Image,1252,1,VO,201205,ES20,P1,
B,Bromsgrove District Council,Surpluses/deficits on trading undertakings,Depot Services,Supplies and Services,"Clothes, uniform and laundry",D31,Clothing and uniforms,08/08/2012,176345,12.00,Revenue income and expenditure,Focal Image,1252,1,VO,201205,DW32,P1,
B,Bromsgrove District Council,Central Services to the Public,Conducting Elections,Supplies and Services,Miscellaneous expenses,D85,General expenses,07/08/2012,176347,111.00,Revenue income and expenditure,Vernon Print & Design,2954,1,VO,201205,EL10,P1,
B,Bromsgrove District Council,,,Supplies and Services,Communication and computing,D51,Printing and stationery,07/08/2012,176349,137.52,Revenue income and expenditure,Automail Envelopes Limited,3876,1,VO,201205,RB03,P1,
B,Bromsgrove District Council,Surpluses/deficits on trading undertakings,Depot Services,Supplies and Services,Miscellaneous expenses,D88,Miscellaneous expenses,07/08/2012,176350,"27,011.77",Revenue income and expenditure,Worcestershire County Council,1759,5,VO,201205,DW14,P3,
B,Bromsgrove District Council,Surpluses/deficits on trading undertakings,Internal Business Units and Support Services,Supplies and Services,Communication and computing,D56,Computer - hardware,07/08/2012,176351,159.00,Revenue income and expenditure,Shenton Global LLP,9486,2,VO,201205,IT12,P1,
B,Bromsgrove District Council,Surpluses/deficits on trading undertakings,Internal Business Units and Support Services,Supplies and Services,Communication and computing,D52,Books and publications,07/08/2012,176352,250.45,Revenue income and expenditure,LexisNexis Butterworths,1989,1,VO,201205,LS00,P4,
B,Bromsgrove District Council,Surpluses/deficits on trading undertakings,Internal Business Units and Support Services,Supplies and Services,Communication and computing,D52,Books and publications,07/08/2012,176353,221.00,Revenue income and expenditure,Sweet & Maxwell Ltd,1626,1,VO,201205,LS00,P4,
B,Bromsgrove District Council,Not BVACOP Service,Not BVACOP Sub Division,Current Assets,Stocks,300,Stock Movement,09/08/2012,176355,820.00,,Foxall Industrial Supplies Ltd,1857,1,VO,201205,XX611,P1,
B,Bromsgrove District Council,General Fund Housing Services,,Supplies and Services,Services,D47,Consultants' fees,07/08/2012,176357,"4,175.00",Revenue income and expenditure,Housing Partners Ltd T/A Home Swapper,9428,1,VO,201205,HG38,P1,
B,Bromsgrove District Council,Surpluses/deficits on trading undertakings,Internal Business Units and Support Services,Supplies and Services,Services,D47,Consultants' fees,07/08/2012,176358,536.00,Revenue income and expenditure,Bevan Brittan LLP,5549,1,VO,201205,LS00,P1,
B,Bromsgrove District Council,General Fund Housing Services,,Supplies and Services,Services,D47,Consultants' fees,07/08/2012,176359,"5,363.00",Revenue income and expenditure,Abritas Ltd,6390,1,VO,201205,HG38,P1,
B,Bromsgrove District Council,,,Premise Related Expenditure,Cleaning and domestic supplies,B80,Contract cleaning,07/08/2012,176361,417.08,Revenue income and expenditure,We Clean Ltd,2966,1,VO,201205,CC01,P1,
B,Bromsgrove District Council,Surpluses/deficits on trading undertakings,Depot Services,Transport Related Expenditure,Direct Transport Costs,C06,Tyres,09/08/2012,176363,20.00,Revenue income and expenditure,A T S Euromaster Ltd.,8244,1,VP,201205,DW14,P1,
B,Bromsgrove District Council,Surpluses/deficits on trading undertakings,Depot Services,Transport Related Expenditure,Direct Transport Costs,C06,Tyres,09/08/2012,176363,52.08,Revenue income and expenditure,A T S Euromaster Ltd.,8244,1,VP,201205,DW11,P1,
B,Bromsgrove District Council,Surpluses/deficits on trading undertakings,Depot Services,Transport Related Expenditure,Direct Transport Costs,C06,Tyres,09/08/2012,176363,701.12,Revenue income and expenditure,A T S Euromaster Ltd.,8244,1,VP,201205,DW21,P1,
B,Bromsgrove District Council,Central Services to the Public,Conducting Elections,Premise Related Expenditure,Rents,B31,Room hire,07/08/2012,176366,117.70,Revenue income and expenditure,The Vaynor First School,10070,1,VN,201205,EL10,P4,
B,Bromsgrove District Council,,,Supplies and Services,Miscellaneous expenses,D99,Workflow only - must change code before saving,08/08/2012,176367,94.18,Revenue income and expenditure,Worcestershire County Council,1759,5,VN,201205,CM23,P4,
B,Bromsgrove District Council,Highways and transport services,Off-street Parking,Supplies and Services,Miscellaneous expenses,D88,Miscellaneous expenses,07/08/2012,176369,"2,029.20",Revenue income and expenditure,Jade Security Services Ltd,7651,1,VO,201205,CP00,P1,
B,Bromsgrove District Council,Surpluses/deficits on trading undertakings,Depot Services,Supplies and Services,"Equipment, furniture and materials",D02,Equipment - maintenance,07/08/2012,176371,93.33,Revenue income and expenditure,Chubb Electronic Security Systems Ltd,6357,1,VO,201205,DP02,P1,
B,Bromsgrove District Council,Surpluses/deficits on trading undertakings,Depot Services,Transport Related Expenditure,Direct Transport Costs,C01,Vehicle repairs/maint'ce,07/08/2012,176374,658.33,Revenue income and expenditure,Imperial Commercials Ltd.,1403,1,VO,201205,DW11,P1,
B,Bromsgrove District Council,Surpluses/deficits on trading undertakings,Depot Services,Transport Related Expenditure,Direct Transport Costs,C01,Vehicle repairs/maint'ce,07/08/2012,176375,357.96,Revenue income and expenditure,Imperial Commercials Ltd.,1403,1,VO,201205,DS62,P1,
B,Bromsgrove District Council,Not BVACOP Service,Not BVACOP Sub Division,Current Assets,Stocks,300,Stock Movement,07/08/2012,176376,8.50,,Imperial Commercials Ltd.,1403,1,VO,201205,XX611,P1,
B,Bromsgrove District Council,Not BVACOP Service,Not BVACOP Sub Division,Current Assets,Stocks,300,Stock Movement,08/08/2012,176377,5.70,,Imperial Commercials Ltd.,1403,1,VO,201205,XX611,P1,
B,Bromsgrove District Council,Not BVACOP Service,Not BVACOP Sub Division,Current Assets,Stocks,300,Stock Movement,07/08/2012,176378,72.69,,Imperial Commercials Ltd.,1403,1,VO,201205,XX611,P1,
B,Bromsgrove District Council,Not BVACOP Service,Not BVACOP Sub Division,Current Assets,Stocks,300,Stock Movement,07/08/2012,176379,79.94,,Imperial Commercials Ltd.,1403,1,VO,201205,XX611,P1,
B,Bromsgrove District Council,Not BVACOP Service,Not BVACOP Sub Division,Current Assets,Stocks,300,Stock Movement,07/08/2012,176380,20.84,,Imperial Commercials Ltd.,1403,1,VO,201205,XX611,P1,
B,Bromsgrove District Council,Surpluses/deficits on trading undertakings,Depot Services,Transport Related Expenditure,Direct Transport Costs,C01,Vehicle repairs/maint'ce,07/08/2012,176381,413.39,Revenue income and expenditure,Imperial Commercials Ltd.,1403,1,VO,201205,DW11,P1,
B,Bromsgrove District Council,Not BVACOP Service,Not BVACOP Sub Division,Current Assets,Stocks,300,Stock Movement,07/08/2012,176382,557.86,,Imperial Commercials Ltd.,1403,1,VO,201205,XX611,P1,
B,Bromsgrove District Council,Surpluses/deficits on trading undertakings,Internal Business Units and Support Services,Supplies and Services,Communication and computing,D56,Computer - hardware,08/08/2012,176383,86.28,Revenue income and expenditure,Insight Direct (UK) Ltd,1350,1,VO,201205,IT12,P1,
B,Bromsgrove District Council,Surpluses/deficits on trading undertakings,Internal Business Units and Support Services,Supplies and Services,Services,D47,Consultants' fees,08/08/2012,176385,945.00,Revenue income and expenditure,NextiraOne Uk Ltd,4867,1,VO,201205,IT12,P1,
B,Bromsgrove District Council,Surpluses/deficits on trading undertakings,Depot Services,Transport Related Expenditure,Direct Transport Costs,C01,Vehicle repairs/maint'ce,07/08/2012,176386,87.64,Revenue income and expenditure,Imperial Commercials Ltd.,1403,1,VO,201205,DW11,P1,
B,Bromsgrove District Council,Highways and transport services,Off-street Parking,Premise Related Expenditure,"Repairs, alterations and maint. of buildings",B03,Internal repair/maint. (reg'd for gross pay't),08/08/2012,176389,276.46,Revenue income and expenditure,Thyssenkrupp Elevator UK Ltd,3658,1,VO,201205,CP01,P1,
B,Bromsgrove District Council,Not BVACOP Service,Not BVACOP Sub Division,Current Assets,Stocks,300,Stock Movement,08/08/2012,176391,723.84,,Race Industrial,7084,1,VO,201205,XX611,P1,
B,Bromsgrove District Council,Planning and Development Services,Other Building control work,Supplies and Services,Communication and computing,D51,Printing and stationery,08/08/2012,176392,50.57,Revenue income and expenditure,Stanford Marsh Ltd,1607,1,VO,201205,BC00,P1,
B,Bromsgrove District Council,Surpluses/deficits on trading undertakings,Depot Services,Transport Related Expenditure,Contract Hire and operating leases,C31,Contract hire of vehicles,15/08/2012,176393,190.00,Revenue income and expenditure,J K Autos,1040,1,VO,201205,DW11,P1,
B,Bromsgrove District Council,Planning and Development Services,Advice,Supplies and Services,Services,D47,Consultants' fees,09/08/2012,176394,231.00,Revenue income and expenditure,Joe Holyoak,6045,1,VO,201205,DC00,P4,
B,Bromsgrove District Council,Planning and Development Services,Advice,Supplies and Services,Services,D47,Consultants' fees,09/08/2012,176395,343.85,Revenue income and expenditure,Joe Holyoak,6045,1,VO,201205,DC00,P4,
B,Bromsgrove District Council,Planning and Development Services,Advice,Supplies and Services,Services,D47,Consultants' fees,09/08/2012,176396,334.20,Revenue income and expenditure,Joe Holyoak,6045,1,VO,201205,DC00,P4,
B,Bromsgrove District Council,Planning and Development Services,Advice,Supplies and Services,Services,D47,Consultants' fees,09/08/2012,176397,206.00,Revenue income and expenditure,Joe Holyoak,6045,1,VO,201205,DC00,P4,
B,Bromsgrove District Council,Surpluses/deficits on trading undertakings,Internal Business Units and Support Services,Supplies and Services,Services,D47,Consultants' fees,08/08/2012,176398,800.00,Revenue income and expenditure,Prestige Systems Ltd.,8836,1,VO,201205,IT12,P1,
B,Bromsgrove District Council,Surpluses/deficits on trading undertakings,Internal Business Units and Support Services,Supplies and Services,Communication and computing,D57,Computer - software,08/08/2012,176399,405.00,Revenue income and expenditure,Vodafone Ltd,9580,1,VO,201205,IT10,P1,
B,Bromsgrove District Council,Surpluses/deficits on trading undertakings,Depot Services,Transport Related Expenditure,Direct Transport Costs,C01,Vehicle repairs/maint'ce,21/08/2012,176400,249.20,Revenue income and expenditure,Scarab Sweepers Ltd,5827,1,VO,201205,DW21,P1,
B,Bromsgrove District Council,Surpluses/deficits on trading undertakings,Depot Services,Supplies and Services,Communication and computing,D53,Postage/packaging,21/08/2012,176400,17.00,Revenue income and expenditure,Scarab Sweepers Ltd,5827,1,VO,201205,DW21,P1,
B,Bromsgrove District Council,Surpluses/deficits on trading undertakings,Depot Services,Transport Related Expenditure,Direct Transport Costs,C01,Vehicle repairs/maint'ce,09/08/2012,176401,222.37,Revenue income and expenditure,Scarab Sweepers Ltd,5827,1,VO,201205,DW21,P1,
B,Bromsgrove District Council,Surpluses/deficits on trading undertakings,Depot Services,Supplies and Services,Communication and computing,D53,Postage/packaging,08/08/2012,176402,14.00,Revenue income and expenditure,Farid Municipal Vehicles Ltd.,5118,1,VO,201205,DW11,P1,
B,Bromsgrove District Council,Not BVACOP Service,Not BVACOP Sub Division,Current Assets,Stocks,300,Stock Movement,08/08/2012,176402,138.45,,Farid Municipal Vehicles Ltd.,5118,1,VO,201205,XX611,P1,
B,Bromsgrove District Council,Environmental Services,Cemeteries,Transport Related Expenditure,Direct Transport Costs,C04,Petrol,16/08/2012,176404,357.37,Revenue income and expenditure,Phoenix Service Stations Ltd,6831,1,VO,201205,CE01,P1,
B,Bromsgrove District Council,Surpluses/deficits on trading undertakings,Depot Services,Transport Related Expenditure,Direct Transport Costs,C04,Petrol,16/08/2012,176404,"1,650.71",Revenue income and expenditure,Phoenix Service Stations Ltd,6831,1,VO,201205,DW32,P1,
B,Bromsgrove District Council,Cultural and Related Services,Community parks and open spaces,Supplies and Services,"Equipment, furniture and materials",D06,Materials - purchased,08/08/2012,176405,78.00,Revenue income and expenditure,K P Ince Specialist Car Colours,8147,1,VO,201205,SP00,P1,
B,Bromsgrove District Council,Surpluses/deficits on trading undertakings,Depot Services,Transport Related Expenditure,Direct Transport Costs,C01,Vehicle repairs/maint'ce,08/08/2012,176406,130.00,Revenue income and expenditure,Clarkson Autoradiators Ltd,10035,1,VO,201205,DS61,P1,
B,Bromsgrove District Council,General Fund Housing Services,Travellers Sites,Premise Related Expenditure,"Repairs, alterations and maint. of buildings",B04,Repair/maint'ce (CIS tax deductible),09/08/2012,176408,45.00,Revenue income and expenditure,WD Ornamental Ironwork,10033,2,VO,201205,HG02,P1,
B,Bromsgrove District Council,General Fund Housing Services,Travellers Sites,Premise Related Expenditure,"Repairs, alterations and maint. of buildings",B02,External repair/maint. (reg'd for gross pay't),09/08/2012,176408,0.00,Revenue income and expenditure,WD Ornamental Ironwork,10033,2,VO,201205,HG02,P1,
B,Bromsgrove District Council,Surpluses/deficits on trading undertakings,Depot Services,Third Party Payments,Independent internal service units,E02,Depot - Refuse Collection,08/08/2012,176410,"3,646.00",Revenue income and expenditure,Worcestershire County Council,1759,5,VO,201205,DW11,P4,
B,Bromsgrove District Council,Surpluses/deficits on trading undertakings,Depot Services,Supplies and Services,"Equipment, furniture and materials",D02,Equipment - maintenance,08/08/2012,176411,338.69,Revenue income and expenditure,G.S. Adams Limited,5337,2,VO,201205,DP02,P1,
B,Bromsgrove District Council,Surpluses/deficits on trading undertakings,Depot Services,Transport Related Expenditure,Direct Transport Costs,C01,Vehicle repairs/maint'ce,16/08/2012,176412,133.00,Revenue income and expenditure,Clarkson Autoradiators Ltd,10035,1,VO,201205,DW14,P1,
B,Bromsgrove District Council,Surpluses/deficits on trading undertakings,Depot Services,Transport Related Expenditure,Direct Transport Costs,C01,Vehicle repairs/maint'ce,10/08/2012,176413,550.00,Revenue income and expenditure,Clarkson Autoradiators Ltd,10035,1,VO,201205,DW11,P1,
B,Bromsgrove District Council,Surpluses/deficits on trading undertakings,Internal Business Units and Support Services,Supplies and Services,Services,D47,Consultants' fees,08/08/2012,176417,800.00,Revenue income and expenditure,Prestige Systems Ltd.,8836,1,VO,201205,IT12,P1,
B,Bromsgrove District Council,Cultural and Related Services,Arts Development and Support,Supplies and Services,Services,D49,Miscellaneous services,16/08/2012,176418,"2,717.20",Revenue income and expenditure,Wavelength Stageco Limited,1694,1,VO,201205,AR02,P1,
B,Bromsgrove District Council,Planning and Development Services,Advice,Supplies and Services,Services,D47,Consultants' fees,09/08/2012,176420,750.00,Revenue income and expenditure,Kernon Countryside Consultants,1381,1,VO,201205,DC00,P1,
B,Bromsgrove District Council,Surpluses/deficits on trading undertakings,Depot Services,Supplies and Services,"Equipment, furniture and materials",D06,Materials - purchased,16/08/2012,176422,69.93,Revenue income and expenditure,Air Liquide Limited,1407,1,VO,201205,DT41,P1,
B,Bromsgrove District Council,Surpluses/deficits on trading undertakings,Depot Services,Supplies and Services,"Equipment, furniture and materials",D01,Equipment - purchase,15/08/2012,176426,464.31,Revenue income and expenditure,Greenham Trading Ltd,1285,1,VO,201205,DW21,P1,
B,Bromsgrove District Council,General Fund Housing Services,Housing Strategy,Supplies and Services,Communication and computing,D51,Printing and stationery,09/08/2012,176427,84.43,Revenue income and expenditure,Office Depot UK Ltd,6249,1,VO,201205,HG20,P1,
B,Bromsgrove District Council,Not BVACOP Service,Not BVACOP Sub Division,Current Assets,Stocks,300,Stock Movement,09/08/2012,176428,86.00,,Truckstop Hawkes (Egglaroy Ltd T/A),6329,1,VO,201205,XX611,P1,
B,Bromsgrove District Council,Surpluses/deficits on trading undertakings,Depot Services,Supplies and Services,"Equipment, furniture and materials",D01,Equipment - purchase,09/08/2012,176429,20.82,Revenue income and expenditure,Morris Mica Hardware,1448,1,VO,201205,DP02,P1,
B,Bromsgrove District Council,Not BVACOP Service,Not BVACOP Sub Division,Current Assets,Stocks,300,Stock Movement,09/08/2012,176429,27.42,,Morris Mica Hardware,1448,1,VO,201205,XX611,P1,
B,Bromsgrove District Council,Environmental Services,Recycling,Supplies and Services,Services,D48,Contractors' fees/charges/SLA's,16/08/2012,176431,131.27,Revenue income and expenditure,Smurfit Kappa Recycling,1375,1,VO,201205,EH06,P1,
B,Bromsgrove District Council,Surpluses/deficits on trading undertakings,Depot Services,Transport Related Expenditure,Direct Transport Costs,C01,Vehicle repairs/maint'ce,09/08/2012,176437,186.10,Revenue income and expenditure,Scarab Sweepers Ltd,5827,1,VN,201205,DW21,P1,
B,Bromsgrove District Council,Planning and Development Services,Other Building control work,Supplies and Services,Communication and computing,D59,Telephones,10/08/2012,176438,118.12,Revenue income and expenditure,Wyre Forest District Council,4809,5,VN,201205,BC00,P1,
B,Bromsgrove District Council,Planning and Development Services,Other Building control work,Supplies and Services,Communication and computing,D53,Postage/packaging,10/08/2012,176438,67.51,Revenue income and expenditure,Wyre Forest District Council,4809,5,VN,201205,BC00,P4,
B,Bromsgrove District Council,Central Services to the Public,Conducting Elections,Premise Related Expenditure,Rents,B31,Room hire,14/08/2012,176440,148.28,Revenue income and expenditure,Worcestershire County Council,1759,5,VN,201205,EL10,P3,
B,Bromsgrove District Council,Surpluses/deficits on trading undertakings,Depot Services,Employees,Direct Employee Expenses,A10,Agency workers,13/08/2012,176445,85.02,Revenue income and expenditure,Matrix SCM Ltd,9043,1,VN,201205,DS61,P1,
B,Bromsgrove District Council,Surpluses/deficits on trading undertakings,Depot Services,Employees,Direct Employee Expenses,A10,Agency workers,13/08/2012,176445,"4,279.51",Revenue income and expenditure,Matrix SCM Ltd,9043,1,VN,201205,DW11,P1,
B,Bromsgrove District Council,Surpluses/deficits on trading undertakings,Depot Services,Employees,Direct Employee Expenses,A10,Agency workers,13/08/2012,176445,560.82,Revenue income and expenditure,Matrix SCM Ltd,9043,1,VN,201205,DW14,P1,
B,Bromsgrove District Council,Surpluses/deficits on trading undertakings,Depot Services,Employees,Direct Employee Expenses,A10,Agency workers,13/08/2012,176445,654.75,Revenue income and expenditure,Matrix SCM Ltd,9043,1,VN,201205,DT41,P1,
B,Bromsgrove District Council,Planning and Development Services,Advice,Employees,Direct Employee Expenses,A10,Agency workers,13/08/2012,176445,714.25,Revenue income and expenditure,Matrix SCM Ltd,9043,1,VN,201205,DC00,P1,
B,Bromsgrove District Council,Surpluses/deficits on trading undertakings,Depot Services,Employees,Direct Employee Expenses,A10,Agency workers,13/08/2012,176445,"1,030.15",Revenue income and expenditure,Matrix SCM Ltd,9043,1,VN,201205,DW21,P1,
B,Bromsgrove District Council,Surpluses/deficits on trading undertakings,Depot Services,Employees,Direct Employee Expenses,A10,Agency workers,13/08/2012,176445,460.72,Revenue income and expenditure,Matrix SCM Ltd,9043,1,VN,201205,DW32,P1,
B,Bromsgrove District Council,,,Supplies and Services,Communication and computing,D53,Postage/packaging,16/08/2012,176446,827.54,Revenue income and expenditure,Royal Mail Group Plc,1558,1,VN,201205,RB03,P1,
B,Bromsgrove District Council,Surpluses/deficits on trading undertakings,Internal Business Units and Support Services,Supplies and Services,Communication and computing,D59,Telephones,14/08/2012,176448,900.00,Revenue income and expenditure,Virgin Media Business,8767,1,VN,201205,IT12,P1,
B,Bromsgrove District Council,Surpluses/deficits on trading undertakings,Internal Business Units and Support Services,Supplies and Services,Communication and computing,D59,Telephones,14/08/2012,176449,"1,005.00",Revenue income and expenditure,Virgin Media Business,8767,1,VN,201205,IT12,P1,
B,Bromsgrove District Council,Not BVACOP Service,Not BVACOP Sub Division,Current Assets,Stocks,300,Stock Movement,15/08/2012,176454,54.00,,Focal Image,1252,1,VO,201205,XX611,P1,
B,Bromsgrove District Council,Not BVACOP Service,Not BVACOP Sub Division,Current Assets,Stocks,300,Stock Movement,15/08/2012,176454,180.00,,Focal Image,1252,1,VO,201205,XX611,P4,
B,Bromsgrove District Council,Surpluses/deficits on trading undertakings,Internal Business Units and Support Services,Supplies and Services,"Clothes, uniform and laundry",D31,Clothing and uniforms,15/08/2012,176455,138.17,Revenue income and expenditure,Focal Image,1252,1,VO,201205,ES20,P1,
B,Bromsgrove District Council,Planning and Development Services,Advice,Supplies and Services,Communication and computing,D51,Printing and stationery,15/08/2012,176458,195.25,Revenue income and expenditure,Sabell & Co (B'ham) Ltd,1563,1,VO,201205,DC00,P1,
B,Bromsgrove District Council,Not BVACOP Service,Not BVACOP Sub Division,Capital Expenditure,Capital Grants,X30,Capital grants,16/08/2012,176459,"14,000.00",Capital income and expenditure,Bromsgrove Housing Initiatives,5941,1,VO,201205,CAPP,P5,
B,Bromsgrove District Council,Planning and Development Services,Advice,Supplies and Services,Communication and computing,D51,Printing and stationery,15/08/2012,176460,51.46,Revenue income and expenditure,Office Depot UK Ltd,6249,1,VO,201205,DC00,P1,
B,Bromsgrove District Council,Surpluses/deficits on trading undertakings,Depot Services,Supplies and Services,Communication and computing,D51,Printing and stationery,15/08/2012,176461,6.01,Revenue income and expenditure,Office Depot UK Ltd,6249,1,VO,201205,DP02,P1,
B,Bromsgrove District Council,Surpluses/deficits on trading undertakings,Depot Services,Supplies and Services,Communication and computing,D51,Printing and stationery,15/08/2012,176461,54.54,Revenue income and expenditure,Office Depot UK Ltd,6249,1,VO,201205,DP02,P4,
B,Bromsgrove District Council,Environmental Services,Cemeteries,Supplies and Services,"Equipment, furniture and materials",D01,Equipment - purchase,16/08/2012,176463,58.00,Revenue income and expenditure,Steel & Stone,10016,1,VO,201205,CE01,P1,
B,Bromsgrove District Council,Not BVACOP Service,Not BVACOP Sub Division,Current Assets,Stocks,300,Stock Movement,15/08/2012,176464,124.00,,Truckstop Hawkes (Egglaroy Ltd T/A),6329,1,VO,201205,XX611,P1,
B,Bromsgrove District Council,Not BVACOP Service,Not BVACOP Sub Division,Current Assets,Stocks,300,Stock Movement,16/08/2012,176465,57.60,,Foxall Industrial Supplies Ltd,1857,1,VO,201205,XX611,P1,
B,Bromsgrove District Council,Not BVACOP Service,Not BVACOP Sub Division,Current Assets,Stocks,300,Stock Movement,16/08/2012,176466,28.60,,Foxall Industrial Supplies Ltd,1857,1,VO,201205,XX611,P1,
B,Bromsgrove District Council,Not BVACOP Service,Not BVACOP Sub Division,Current Assets,Stocks,300,Stock Movement,15/08/2012,176467,117.00,,Spaldings (UK) Ltd,1600,1,VO,201205,XX611,P1,
B,Bromsgrove District Council,Surpluses/deficits on trading undertakings,Depot Services,Transport Related Expenditure,Direct Transport Costs,C01,Vehicle repairs/maint'ce,15/08/2012,176469,81.90,Revenue income and expenditure,FAUN Municipal Vehicles Ltd,1455,1,VO,201205,DW11,P1,
B,Bromsgrove District Council,Surpluses/deficits on trading undertakings,Depot Services,Transport Related Expenditure,Direct Transport Costs,C01,Vehicle repairs/maint'ce,15/08/2012,176470,593.32,Revenue income and expenditure,FAUN Municipal Vehicles Ltd,1455,1,VO,201205,DW11,P1,
B,Bromsgrove District Council,Surpluses/deficits on trading undertakings,Depot Services,Transport Related Expenditure,Direct Transport Costs,C01,Vehicle repairs/maint'ce,15/08/2012,176471,54.60,Revenue income and expenditure,FAUN Municipal Vehicles Ltd,1455,1,VO,201205,DW11,P1,
B,Bromsgrove District Council,Surpluses/deficits on trading undertakings,Depot Services,Transport Related Expenditure,Direct Transport Costs,C01,Vehicle repairs/maint'ce,15/08/2012,176472,178.50,Revenue income and expenditure,FAUN Municipal Vehicles Ltd,1455,1,VO,201205,DW11,P1,
B,Bromsgrove District Council,Surpluses/deficits on trading undertakings,Depot Services,Transport Related Expenditure,Direct Transport Costs,C01,Vehicle repairs/maint'ce,31/08/2012,176473,579.67,Revenue income and expenditure,FAUN Municipal Vehicles Ltd,1455,1,VO,201205,DW11,P1,
B,Bromsgrove District Council,Not BVACOP Service,Not BVACOP Sub Division,Current Assets,Stocks,300,Stock Movement,15/08/2012,176474,8.96,,Broad Street D.I.Y,1089,1,VO,201205,XX611,P1,
B,Bromsgrove District Council,Not BVACOP Service,Not BVACOP Sub Division,Current Assets,Stocks,300,Stock Movement,15/08/2012,176475,29.99,,Broad Street D.I.Y,1089,1,VO,201205,XX611,P1,
B,Bromsgrove District Council,Environmental Services,Public Toilets,Supplies and Services,"Equipment, furniture and materials",D06,Materials - purchased,15/08/2012,176476,15.11,Revenue income and expenditure,Broad Street D.I.Y,1089,1,VO,201205,PC03,P1,
B,Bromsgrove District Council,Not BVACOP Service,Not BVACOP Sub Division,Current Assets,Stocks,300,Stock Movement,15/08/2012,176477,120.06,,Broad Street D.I.Y,1089,1,VO,201205,XX611,P1,
B,Bromsgrove District Council,Surpluses/deficits on trading undertakings,Internal Business Units and Support Services,Supplies and Services,"Equipment, furniture and materials",D06,Materials - purchased,15/08/2012,176478,45.87,Revenue income and expenditure,Broad Street D.I.Y,1089,1,VO,201205,ES20,P1,
B,Bromsgrove District Council,Planning and Development Services,Advice,Supplies and Services,Miscellaneous expenses,D88,Miscellaneous expenses,15/08/2012,176479,251.40,Revenue income and expenditure,TMP (UK) Ltd,1646,1,VO,201205,DC00,P1,
B,Bromsgrove District Council,Planning and Development Services,Advice,Supplies and Services,Miscellaneous expenses,D88,Miscellaneous expenses,15/08/2012,176480,287.80,Revenue income and expenditure,TMP (UK) Ltd,1646,1,VO,201205,DC00,P1,
B,Bromsgrove District Council,Planning and Development Services,Advice,Supplies and Services,Miscellaneous expenses,D88,Miscellaneous expenses,15/08/2012,176481,142.20,Revenue income and expenditure,TMP (UK) Ltd,1646,1,VO,201205,DC00,P1,
B,Bromsgrove District Council,Planning and Development Services,Advice,Supplies and Services,Miscellaneous expenses,D88,Miscellaneous expenses,15/08/2012,176483,233.20,Revenue income and expenditure,TMP (UK) Ltd,1646,1,VO,201205,DC00,P1,
B,Bromsgrove District Council,Environmental Services,Recycling,Supplies and Services,Services,D48,Contractors' fees/charges/SLA's,15/08/2012,176484,369.64,Revenue income and expenditure,Smurfit Kappa Recycling,1375,1,VO,201205,EH06,P1,
B,Bromsgrove District Council,,,Operational Assets,Council Dwellings & Garage,100,Council Houses,23/08/2012,176485,925.00,Revenue income and expenditure,Morgan Hunt UK Ltd,9519,1,VO,201205,RB10,P1,
B,Bromsgrove District Council,Environmental Services,Internal Drainage Levy Work,Third Party Payments,Other Local authorities,E31,Other local authorities,16/08/2012,176486,"6,705.33",Revenue income and expenditure,Wyre Forest District Council,4809,5,VO,201205,LD02,P1,
B,Bromsgrove District Council,Not BVACOP Service,Not BVACOP Sub Division,Capital Expenditure,Operational Land and Buildings,X03,Construction work (CIS tax deductible),16/08/2012,176490,"1,990.00",Capital income and expenditure,Abbey & Lyndon,4751,2,VO,201205,CAPC,P1,
B,Bromsgrove District Council,,,Supplies and Services,"Equipment, furniture and materials",D03,Equipment - rental/lease,17/08/2012,176491,25.20,Revenue income and expenditure,Angel Springs Ltd,8009,1,VO,201205,CC01,P1,
B,Bromsgrove District Council,Surpluses/deficits on trading undertakings,Depot Services,Supplies and Services,Miscellaneous expenses,D88,Miscellaneous expenses,16/08/2012,176492,67.80,Revenue income and expenditure,Mercia Waste Management Ltd,1433,1,VO,201205,DW32,P1,
B,Bromsgrove District Council,Planning and Development Services,Advice,Supplies and Services,Services,D47,Consultants' fees,23/08/2012,176493,165.00,Revenue income and expenditure,Joe Holyoak,6045,1,VO,201205,DC00,P4,
B,Bromsgrove District Council,Not BVACOP Service,Not BVACOP Sub Division,Current Assets,Stocks,300,Stock Movement,20/08/2012,176494,58.36,,FAUN Municipal Vehicles Ltd,1455,1,VO,201205,XX611,P1,
B,Bromsgrove District Council,Surpluses/deficits on trading undertakings,Internal Business Units and Support Services,Transport Related Expenditure,Contract Hire and operating leases,C32,Courier and transport services,16/08/2012,176496,19.95,Revenue income and expenditure,Bonds Worldwide Express Limited,5586,1,VO,201205,LS00,P1,
B,Bromsgrove District Council,Environmental Services,Recycling,Supplies and Services,Services,D48,Contractors' fees/charges/SLA's,16/08/2012,176497,159.71,Revenue income and expenditure,Berryman,3621,1,VO,201205,EH06,P1,
B,Bromsgrove District Council,Surpluses/deficits on trading undertakings,Depot Services,Transport Related Expenditure,Direct Transport Costs,C01,Vehicle repairs/maint'ce,17/08/2012,176498,"1,204.73",Revenue income and expenditure,Vehicle Weighing Solution Ltd,10045,1,VN,201205,DW11,P1,
B,Bromsgrove District Council,Surpluses/deficits on trading undertakings,Depot Services,Premise Related Expenditure,Energy Costs,B23,Gas,20/08/2012,176501,496.53,Revenue income and expenditure,West Mercia Supplies,1703,1,VN,201205,DP02,P1,
B,Bromsgrove District Council,Surpluses/deficits on trading undertakings,Internal Business Units and Support Services,Supplies and Services,Communication and computing,D52,Books and publications,20/08/2012,176503,784.00,Revenue income and expenditure,LexisNexis Butterworths,1989,1,VO,201205,RS00,0,
B,Bromsgrove District Council,Surpluses/deficits on trading undertakings,Internal Business Units and Support Services,Supplies and Services,Communication and computing,D59,Telephones,16/08/2012,176504,297.89,Revenue income and expenditure,Thus plc.,5306,1,VN,201205,IT12,P1,
B,Bromsgrove District Council,Environmental Services,Public Toilets,Transport Related Expenditure,Direct Transport Costs,C01,Vehicle repairs/maint'ce,16/08/2012,176505,6.71,Revenue income and expenditure,All Saints,5335,1,VO,201205,PC00,P1,
B,Bromsgrove District Council,Surpluses/deficits on trading undertakings,Depot Services,Transport Related Expenditure,Direct Transport Costs,C01,Vehicle repairs/maint'ce,16/08/2012,176505,13.91,Revenue income and expenditure,All Saints,5335,1,VO,201205,DS62,P1,
B,Bromsgrove District Council,Environmental Services,Public Toilets,Transport Related Expenditure,Direct Transport Costs,C01,Vehicle repairs/maint'ce,16/08/2012,176506,21.92,Revenue income and expenditure,All Saints,5335,1,VO,201205,PC00,P1,
B,Bromsgrove District Council,Not BVACOP Service,Not BVACOP Sub Division,Current Assets,Stocks,300,Stock Movement,16/08/2012,176512,396.00,,Rigby Taylor Ltd,1546,1,VO,201205,XX611,P1,
B,Bromsgrove District Council,Not BVACOP Service,Not BVACOP Sub Division,Current Assets,Stocks,300,Stock Movement,16/08/2012,176516,700.00,,Danline International Ltd,4507,1,VO,201205,XX611,P1,
B,Bromsgrove District Council,Surpluses/deficits on trading undertakings,Depot Services,Supplies and Services,"Equipment, furniture and materials",D02,Equipment - maintenance,16/08/2012,176517,307.94,Revenue income and expenditure,Trojan Garage Equipment Services Ltd,1659,1,VO,201205,DT41,P1,
B,Bromsgrove District Council,Surpluses/deficits on trading undertakings,Internal Business Units and Support Services,Premise Related Expenditure,"Repairs, alterations and maint. of buildings",B04,Repair/maint'ce (CIS tax deductible),21/08/2012,176518,209.33,Revenue income and expenditure,PJA Electrics  Ltd,2892,2,VO,201205,IT12,P1,
B,Bromsgrove District Council,Surpluses/deficits on trading undertakings,Internal Business Units and Support Services,Premise Related Expenditure,Fixtures and Fittings,B63,Internal fixtures/fittings - maint'ce,21/08/2012,176518,0.00,Revenue income and expenditure,PJA Electrics  Ltd,2892,2,VO,201205,IT12,P1,
B,Bromsgrove District Council,Surpluses/deficits on trading undertakings,Depot Services,Transport Related Expenditure,Contract Hire and operating leases,C31,Contract hire of vehicles,16/08/2012,176520,"1,140.00",Revenue income and expenditure,Priority Hire Ltd,9764,1,VO,201205,DW11,P1,
B,Bromsgrove District Council,Surpluses/deficits on trading undertakings,Depot Services,Supplies and Services,Services,D47,Consultants' fees,16/08/2012,176521,500.00,Revenue income and expenditure,UP TO SPEED TRAINING & ASSESSMENT lTD,10061,1,VO,201205,DW21,P1,
B,Bromsgrove District Council,Surpluses/deficits on trading undertakings,Depot Services,Employees,Indirect Employee Expenses,A23,Training for professional qualifications,16/08/2012,176522,400.00,Revenue income and expenditure,UP TO SPEED TRAINING & ASSESSMENT lTD,10061,1,VO,201205,DW21,P1,
B,Bromsgrove District Council,,,Supplies and Services,Communication and computing,D51,Printing and stationery,16/08/2012,176523,104.50,Revenue income and expenditure,Antalis Ltd,1768,1,VO,201205,CC01,P1,
B,Bromsgrove District Council,Surpluses/deficits on trading undertakings,Depot Services,Supplies and Services,"Equipment, furniture and materials",D01,Equipment - purchase,22/08/2012,176524,187.60,Revenue income and expenditure,Greenham Trading Ltd,1285,1,VO,201205,DW21,P1,
B,Bromsgrove District Council,Surpluses/deficits on trading undertakings,Internal Business Units and Support Services,Supplies and Services,Communication and computing,D51,Printing and stationery,16/08/2012,176525,233.00,Revenue income and expenditure,Vernon Print & Design,2954,1,VO,201205,PS01,P1,
B,Bromsgrove District Council,Not BVACOP Service,Not BVACOP Sub Division,Current Assets,Stocks,300,Stock Movement,16/08/2012,176526,80.94,,Scarab Sweepers Ltd,5827,1,VO,201205,XX611,P1,
B,Bromsgrove District Council,Cultural and Related Services,Community parks and open spaces,Supplies and Services,Miscellaneous expenses,D99,Workflow only - must change code before saving,28/08/2012,176527,141.80,Revenue income and expenditure,Stokes Catering,9000,1,VN,201205,SP00,P4,
B,Bromsgrove District Council,,,Transport Related Expenditure,Direct Transport Costs,C01,Vehicle repairs/maint'ce,16/08/2012,176528,288.15,Revenue income and expenditure,G Tech Support Services,10060,1,VO,201205,CM21,P4,
B,Bromsgrove District Council,Surpluses/deficits on trading undertakings,Internal Business Units and Support Services,Supplies and Services,Communication and computing,D56,Computer - hardware,22/08/2012,176529,174.00,Revenue income and expenditure,Probrand Limited,9439,1,VO,201205,IT10,P1,
B,Bromsgrove District Council,Not BVACOP Service,Not BVACOP Sub Division,Capital Expenditure,Capital Grants,X30,Capital grants,16/08/2012,176530,49.00,Capital income and expenditure,Domestic & General Insulation Ltd,10011,2,VO,201205,CAPP,P5,
B,Bromsgrove District Council,Not BVACOP Service,Not BVACOP Sub Division,Capital Expenditure,Capital Grants,X30,Capital grants,16/08/2012,176531,49.00,Capital income and expenditure,Domestic & General Insulation Ltd,10011,2,VO,201205,CAPP,P5,
B,Bromsgrove District Council,,,Operational Assets,Council Dwellings & Garage,100,Council Houses,23/08/2012,176532,925.00,Revenue income and expenditure,Morgan Hunt UK Ltd,9519,1,VO,201205,RB10,P1,
B,Bromsgrove District Council,Highways and transport services,Off-street Parking,Supplies and Services,Communication and computing,D50,Debt Collection Fees,16/08/2012,176533,3.61,Revenue income and expenditure,Bristow & Sutor,1085,1,VO,201205,CP00,P1,
B,Bromsgrove District Council,Surpluses/deficits on trading undertakings,Depot Services,Transport Related Expenditure,Direct Transport Costs,C01,Vehicle repairs/maint'ce,16/08/2012,176534,556.48,Revenue income and expenditure,Imperial Commercials Ltd.,1403,1,VO,201205,DW11,P1,
B,Bromsgrove District Council,Surpluses/deficits on trading undertakings,Internal Business Units and Support Services,Supplies and Services,Communication and computing,D50,Debt Collection Fees,20/08/2012,176535,31.30,Revenue income and expenditure,Bristow & Sutor,1085,1,VN,201205,FS00,P1,
B,Bromsgrove District Council,Surpluses/deficits on trading undertakings,Depot Services,Employees,Direct Employee Expenses,A10,Agency workers,20/08/2012,176536,"5,585.83",Revenue income and expenditure,Matrix SCM Ltd,9043,1,VN,201205,DW11,P1,
B,Bromsgrove District Council,Surpluses/deficits on trading undertakings,Depot Services,Employees,Direct Employee Expenses,A10,Agency workers,20/08/2012,176536,738.17,Revenue income and expenditure,Matrix SCM Ltd,9043,1,VN,201205,DW21,P1,
B,Bromsgrove District Council,Surpluses/deficits on trading undertakings,Depot Services,Employees,Direct Employee Expenses,A10,Agency workers,20/08/2012,176536,495.41,Revenue income and expenditure,Matrix SCM Ltd,9043,1,VN,201205,DW14,P1,
B,Bromsgrove District Council,Surpluses/deficits on trading undertakings,Depot Services,Employees,Direct Employee Expenses,A10,Agency workers,20/08/2012,176536,523.80,Revenue income and expenditure,Matrix SCM Ltd,9043,1,VN,201205,DT41,P1,
B,Bromsgrove District Council,Planning and Development Services,Advice,Employees,Direct Employee Expenses,A10,Agency workers,20/08/2012,176536,778.74,Revenue income and expenditure,Matrix SCM Ltd,9043,1,VN,201205,DC00,P1,
B,Bromsgrove District Council,Surpluses/deficits on trading undertakings,Depot Services,Employees,Direct Employee Expenses,A10,Agency workers,20/08/2012,176536,524.84,Revenue income and expenditure,Matrix SCM Ltd,9043,1,VN,201205,DW32,P1,
B,Bromsgrove District Council,Surpluses/deficits on trading undertakings,Depot Services,Employees,Direct Employee Expenses,A10,Agency workers,20/08/2012,176536,101.47,Revenue income and expenditure,Matrix SCM Ltd,9043,1,VN,201205,DS61,P1,
B,Bromsgrove District Council,Surpluses/deficits on trading undertakings,Depot Services,Premise Related Expenditure,Water Services,B51,Water charges,22/08/2012,176538,"4,327.32",Revenue income and expenditure,Severn Trent Water,8934,1,VO,201205,DS61,P4,
B,Bromsgrove District Council,Surpluses/deficits on trading undertakings,Depot Services,Transport Related Expenditure,Contract Hire and operating leases,C31,Contract hire of vehicles,16/08/2012,176539,126.00,Revenue income and expenditure,Northgate Vehicle Hire (West Midlands) Ltd,8773,1,VO,201205,DW21,P1,
B,Bromsgrove District Council,Surpluses/deficits on trading undertakings,Internal Business Units and Support Services,Premise Related Expenditure,Energy Costs,B23,Gas,22/08/2012,176540,744.38,Revenue income and expenditure,West Mercia Supplies,1703,1,VN,201205,ES20,P2,
B,Bromsgrove District Council,Surpluses/deficits on trading undertakings,Depot Services,Supplies and Services,Services,D49,Miscellaneous services,29/08/2012,176541,3.12,Revenue income and expenditure,Royal Mail Group Plc,1558,1,VN,201205,DP02,P1,
B,Bromsgrove District Council,Cultural and Related Services,Allotments,Supplies and Services,Miscellaneous expenses,D99,Workflow only - must change code before saving,22/08/2012,176542,332.50,Revenue income and expenditure,Severn Trent Water Ltd,2416,1,VN,201205,AL01,P4,
B,Bromsgrove District Council,Surpluses/deficits on trading undertakings,Internal Business Units and Support Services,Supplies and Services,Communication and computing,D59,Telephones,28/08/2012,176544,674.37,Revenue income and expenditure,Daisy Communications,7578,1,VN,201205,IT12,P1,
B,Bromsgrove District Council,General Fund Housing Services,Homelessness Administration,Supplies and Services,Services,D47,Consultants' fees,21/08/2012,176545,187.50,Revenue income and expenditure,Guy Wardle,4866,1,VO,201205,HG08,P4,
B,Bromsgrove District Council,Planning and Development Services,Advice,Supplies and Services,Communication and computing,D51,Printing and stationery,27/08/2012,176546,28.78,Revenue income and expenditure,Ash Rubber Stamp Co Ltd,1034,1,VO,201205,DC00,P1,
B,Bromsgrove District Council,Planning and Development Services,Advice,Supplies and Services,Communication and computing,D51,Printing and stationery,27/08/2012,176547,31.99,Revenue income and expenditure,Ash Rubber Stamp Co Ltd,1034,1,VO,201205,DC00,P1,
B,Bromsgrove District Council,Surpluses/deficits on trading undertakings,Depot Services,Transport Related Expenditure,Direct Transport Costs,C01,Vehicle repairs/maint'ce,21/08/2012,176548,194.80,Revenue income and expenditure,Dennis Eagle Ltd,1191,1,VO,201205,DW11,P1,
B,Bromsgrove District Council,Highways and transport services,Off-street Parking,Supplies and Services,Communication and computing,D50,Debt Collection Fees,21/08/2012,176552,2.02,Revenue income and expenditure,Bristow & Sutor,1085,1,VO,201205,CP00,P1,
B,Bromsgrove District Council,Surpluses/deficits on trading undertakings,Internal Business Units and Support Services,Premise Related Expenditure,"Repairs, alterations and maint. of buildings",B04,Repair/maint'ce (CIS tax deductible),21/08/2012,176553,"1,305.00",Revenue income and expenditure,PJA Electrics  Ltd,2892,2,VO,201205,ES20,P1,
B,Bromsgrove District Council,Surpluses/deficits on trading undertakings,Internal Business Units and Support Services,Premise Related Expenditure,"Repairs, alterations and maint. of buildings",B03,Internal repair/maint. (reg'd for gross pay't),21/08/2012,176553,0.00,Revenue income and expenditure,PJA Electrics  Ltd,2892,2,VO,201205,ES20,P1,
B,Bromsgrove District Council,Surpluses/deficits on trading undertakings,Depot Services,Transport Related Expenditure,Direct Transport Costs,C01,Vehicle repairs/maint'ce,21/08/2012,176556,"1,176.88",Revenue income and expenditure,CP Davidson & Sons Ltd,5790,1,VO,201205,DW14,P1,
B,Bromsgrove District Council,Surpluses/deficits on trading undertakings,Depot Services,Transport Related Expenditure,Direct Transport Costs,C01,Vehicle repairs/maint'ce,21/08/2012,176557,17.10,Revenue income and expenditure,Imperial Commercials Ltd.,1403,1,VO,201205,DW11,P1,
B,Bromsgrove District Council,Not BVACOP Service,Not BVACOP Sub Division,Current Assets,Stocks,300,Stock Movement,21/08/2012,176558,46.84,,Imperial Commercials Ltd.,1403,1,VO,201205,XX611,P1,
B,Bromsgrove District Council,Not BVACOP Service,Not BVACOP Sub Division,Current Assets,Stocks,300,Stock Movement,21/08/2012,176559,80.70,,Imperial Commercials Ltd.,1403,1,VO,201205,XX611,P1,
B,Bromsgrove District Council,Surpluses/deficits on trading undertakings,Depot Services,Transport Related Expenditure,Direct Transport Costs,C01,Vehicle repairs/maint'ce,21/08/2012,176560,35.10,Revenue income and expenditure,Imperial Commercials Ltd.,1403,1,VO,201205,DS61,P1,
B,Bromsgrove District Council,Surpluses/deficits on trading undertakings,Internal Business Units and Support Services,Supplies and Services,Communication and computing,D56,Computer - hardware,22/08/2012,176561,"29,276.00",Revenue income and expenditure,Insight Direct (UK) Ltd,1350,1,VO,201205,IT12,P1,
B,Bromsgrove District Council,Surpluses/deficits on trading undertakings,Depot Services,Supplies and Services,"Equipment, furniture and materials",D02,Equipment - maintenance,21/08/2012,176563,399.00,Revenue income and expenditure,Snap-on Tools LTD,1937,1,VO,201205,DT41,P1,
B,Bromsgrove District Council,Surpluses/deficits on trading undertakings,Internal Business Units and Support Services,Supplies and Services,Communication and computing,D77,Internet,22/08/2012,176567,72.61,Revenue income and expenditure,British Telecommunications plc,1098,1,VN,201205,IT12,P1,
B,Bromsgrove District Council,Surpluses/deficits on trading undertakings,Internal Business Units and Support Services,Supplies and Services,Catering,D22,Vending purchases/costs,21/08/2012,176568,22.00,Revenue income and expenditure,Blue Mountain Water,9003,1,VO,201205,IT00,P1,
B,Bromsgrove District Council,Surpluses/deficits on trading undertakings,Depot Services,Premise Related Expenditure,"Repairs, alterations and maint. of buildings",B02,External repair/maint. (reg'd for gross pay't),21/08/2012,176569,"1,282.21",Revenue income and expenditure,Chubb Electronic Security Systems Ltd,6357,1,VO,201205,DP02,P1,
B,Bromsgrove District Council,Not BVACOP Service,Not BVACOP Sub Division,Current Assets,Stocks,300,Stock Movement,24/08/2012,176570,84.40,,ATE (UK) Ltd,10072,1,VO,201205,XX611,P1,
B,Bromsgrove District Council,Environmental Services,,Supplies and Services,Services,D48,Contractors' fees/charges/SLA's,24/08/2012,176573,"3,900.00",Revenue income and expenditure,SKM Enviros,9301,1,VO,201205,YA39,P1,
B,Bromsgrove District Council,Surpluses/deficits on trading undertakings,Internal Business Units and Support Services,Supplies and Services,Communication and computing,D56,Computer - hardware,22/08/2012,176574,136.00,Revenue income and expenditure,Probrand Limited,9439,1,VO,201205,IT10,P1,
B,Bromsgrove District Council,Surpluses/deficits on trading undertakings,Internal Business Units and Support Services,Supplies and Services,Communication and computing,D56,Computer - hardware,21/08/2012,176575,756.80,Revenue income and expenditure,Prestige Systems Ltd.,8836,1,VO,201205,IT10,P1,
B,Bromsgrove District Council,Surpluses/deficits on trading undertakings,Internal Business Units and Support Services,Supplies and Services,Communication and computing,D56,Computer - hardware,21/08/2012,176575,756.80,Revenue income and expenditure,Prestige Systems Ltd.,8836,1,VO,201205,IT12,P1,
B,Bromsgrove District Council,Surpluses/deficits on trading undertakings,Depot Services,Supplies and Services,"Equipment, furniture and materials",D06,Materials - purchased,21/08/2012,176576,16.84,Revenue income and expenditure,PCS Jangro,7294,1,VO,201205,DP02,P1,
B,Bromsgrove District Council,Planning and Development Services,Advice,Supplies and Services,Services,D47,Consultants' fees,23/08/2012,176581,797.50,Revenue income and expenditure,Kernon Countryside Consultants,1381,1,VO,201205,DC00,P1,
B,Bromsgrove District Council,Planning and Development Services,Advice,Supplies and Services,Services,D47,Consultants' fees,23/08/2012,176582,623.75,Revenue income and expenditure,Kernon Countryside Consultants,1381,1,VO,201205,DC00,P1,
B,Bromsgrove District Council,Surpluses/deficits on trading undertakings,Industrial Estates,Premise Related Expenditure,Energy Costs,B22,Electricity,22/08/2012,176583,8.78,Revenue income and expenditure,Npower Limited,2080,1,VN,201205,IP08,P1,
B,Bromsgrove District Council,,,Premise Related Expenditure,Energy Costs,B22,Electricity,22/08/2012,176584,29.42,Revenue income and expenditure,Npower Limited,2080,1,VN,201205,MH04,P2,
B,Bromsgrove District Council,,,Premise Related Expenditure,Energy Costs,B22,Electricity,22/08/2012,176585,19.20,Revenue income and expenditure,Npower Limited,2080,1,VN,201205,MH04,P2,
B,Bromsgrove District Council,Surpluses/deficits on trading undertakings,Industrial Estates,Premise Related Expenditure,Energy Costs,B22,Electricity,22/08/2012,176586,8.78,Revenue income and expenditure,Npower Limited,2080,1,VN,201205,IP08,P1,
B,Bromsgrove District Council,Environmental Services,,Premise Related Expenditure,Energy Costs,B22,Electricity,24/08/2012,176587,371.63,Revenue income and expenditure,Npower Limited,2080,1,VN,201205,YA00,P1,
B,Bromsgrove District Council,Cultural and Related Services,Museums and Gallaries,Premise Related Expenditure,Energy Costs,B22,Electricity,22/08/2012,176588,13.00,Revenue income and expenditure,Npower Limited,2080,1,VN,201205,MT91,P1,
B,Bromsgrove District Council,Cultural and Related Services,Museums and Gallaries,Premise Related Expenditure,Energy Costs,B22,Electricity,22/08/2012,176589,14.46,Revenue income and expenditure,Npower Limited,2080,1,VN,201205,MT91,P1,
B,Bromsgrove District Council,Surpluses/deficits on trading undertakings,Internal Business Units and Support Services,Premise Related Expenditure,Energy Costs,B22,Electricity,22/08/2012,176590,"2,848.13",Revenue income and expenditure,Npower Limited,2080,1,VN,201205,ES20,P1,
B,Bromsgrove District Council,,,Premise Related Expenditure,Energy Costs,B22,Electricity,22/08/2012,176591,17.05,Revenue income and expenditure,Npower Limited,2080,1,VN,201205,MH04,P2,
B,Bromsgrove District Council,Environmental Services,,Premise Related Expenditure,Energy Costs,B22,Electricity,24/08/2012,176592,444.78,Revenue income and expenditure,Npower Limited,2080,1,VN,201205,YA00,P1,
B,Bromsgrove District Council,,,Premise Related Expenditure,Energy Costs,B22,Electricity,22/08/2012,176593,26.01,Revenue income and expenditure,Npower Limited,2080,1,VN,201205,MH04,P2,
B,Bromsgrove District Council,Highways and transport services,Off-street Parking,Premise Related Expenditure,Energy Costs,B22,Electricity,30/08/2012,176594,"3,636.88",Revenue income and expenditure,Npower Limited,2080,1,VN,201205,CP01,P1,
B,Bromsgrove District Council,Surpluses/deficits on trading undertakings,Internal Business Units and Support Services,Premise Related Expenditure,Energy Costs,B22,Electricity,22/08/2012,176595,"1,632.65",Revenue income and expenditure,Npower Limited,2080,1,VN,201205,ES20,P1,
B,Bromsgrove District Council,Surpluses/deficits on trading undertakings,Internal Business Units and Support Services,Supplies and Services,Communication and computing,D77,Internet,22/08/2012,176597,87.61,Revenue income and expenditure,British Telecommunications plc,1098,1,VN,201205,IT12,P1,
B,Bromsgrove District Council,Surpluses/deficits on trading undertakings,Internal Business Units and Support Services,Supplies and Services,Communication and computing,D59,Telephones,22/08/2012,176599,305.79,Revenue income and expenditure,Gamma Business Communications Ltd,9982,1,VN,201205,IT12,P1,
B,Bromsgrove District Council,Planning and Development Services,Supplementary planning guidance,Premise Related Expenditure,Rents,B31,Room hire,22/08/2012,176605,32.00,Revenue income and expenditure,Belbroughton Recreation Centre,4947,1,VO,201205,LP01,P4,
B,Bromsgrove District Council,Not BVACOP Service,Not BVACOP Sub Division,Current Assets,Stocks,300,Stock Movement,22/08/2012,176612,230.45,,Scarab Sweepers Ltd,5827,1,VO,201205,XX611,P1,
B,Bromsgrove District Council,Surpluses/deficits on trading undertakings,Depot Services,Supplies and Services,Communication and computing,D53,Postage/packaging,22/08/2012,176612,17.00,Revenue income and expenditure,Scarab Sweepers Ltd,5827,1,VO,201205,DW21,P1,
B,Bromsgrove District Council,Surpluses/deficits on trading undertakings,Depot Services,Transport Related Expenditure,Direct Transport Costs,C01,Vehicle repairs/maint'ce,22/08/2012,176612,134.97,Revenue income and expenditure,Scarab Sweepers Ltd,5827,1,VO,201205,DW21,P1,
B,Bromsgrove District Council,Not BVACOP Service,Not BVACOP Sub Division,Supplies and Services,Miscellaneous expenses,D99,Workflow only - must change code before saving,28/08/2012,176615,"1,277.92",Revenue income and expenditure,Royal Mail Group Plc,1558,1,VN,201205,RB99,P1,
B,Bromsgrove District Council,Planning and Development Services,Structure and local planning,Supplies and Services,Services,D43,Training fees,28/08/2012,176619,313.50,Revenue income and expenditure,Worcestershire County Council,1759,5,VO,201205,LP00,P1,
B,Bromsgrove District Council,Planning and Development Services,Structure and local planning,Supplies and Services,Services,D43,Training fees,28/08/2012,176622,296.25,Revenue income and expenditure,Worcestershire County Council,1759,5,VO,201205,LP00,P1,
B,Bromsgrove District Council,Not BVACOP Service,Not BVACOP Sub Division,Current Assets,Stocks,300,Stock Movement,23/08/2012,176624,130.00,,Truckstop Hawkes (Egglaroy Ltd T/A),6329,1,VO,201205,XX611,P1,
B,Bromsgrove District Council,Surpluses/deficits on trading undertakings,Internal Business Units and Support Services,Employees,Indirect Employee Expenses,A36,Employees' professional subscriptions,23/08/2012,176625,135.00,Revenue income and expenditure,Association of Electoral Administrators,5625,1,VO,201205,RS00,P1,
B,Bromsgrove District Council,Surpluses/deficits on trading undertakings,Depot Services,Supplies and Services,Miscellaneous expenses,D87,Marketing/promotion/publicity,23/08/2012,176626,300.00,Revenue income and expenditure,Focal Image,1252,1,VO,201205,DW14,P1,
B,Bromsgrove District Council,Not BVACOP Service,Not BVACOP Sub Division,Current Assets,Stocks,300,Stock Movement,23/08/2012,176627,182.00,,Focal Image,1252,1,VO,201205,XX611,P4,
B,Bromsgrove District Council,Surpluses/deficits on trading undertakings,Depot Services,Supplies and Services,"Clothes, uniform and laundry",D31,Clothing and uniforms,23/08/2012,176627,80.50,Revenue income and expenditure,Focal Image,1252,1,VO,201205,DW32,P4,
B,Bromsgrove District Council,Surpluses/deficits on trading undertakings,Internal Business Units and Support Services,Supplies and Services,Services,D43,Training fees,23/08/2012,176628,700.00,Revenue income and expenditure,HBJ Gateley Wareing LLP,7833,1,VO,201205,PS08,P1,
B,Bromsgrove District Council,Surpluses/deficits on trading undertakings,Internal Business Units and Support Services,Supplies and Services,Services,D47,Consultants' fees,31/08/2012,176629,"2,000.00",Revenue income and expenditure,HBJ Gateley Wareing LLP,7833,1,VO,201205,LS00,P1,
B,Bromsgrove District Council,Surpluses/deficits on trading undertakings,Depot Services,Employees,Direct Employee Expenses,A10,Agency workers,30/08/2012,176631,"1,762.11",Revenue income and expenditure,Matrix SCM Ltd,9043,1,VN,201205,DW21,P1,
B,Bromsgrove District Council,Surpluses/deficits on trading undertakings,Depot Services,Employees,Direct Employee Expenses,A10,Agency workers,30/08/2012,176631,654.75,Revenue income and expenditure,Matrix SCM Ltd,9043,1,VN,201205,DT41,P1,
B,Bromsgrove District Council,Planning and Development Services,Advice,Employees,Direct Employee Expenses,A10,Agency workers,30/08/2012,176631,730.52,Revenue income and expenditure,Matrix SCM Ltd,9043,1,VN,201205,DC00,P1,
B,Bromsgrove District Council,Surpluses/deficits on trading undertakings,Depot Services,Employees,Direct Employee Expenses,A10,Agency workers,30/08/2012,176631,495.41,Revenue income and expenditure,Matrix SCM Ltd,9043,1,VN,201205,DW14,P1,
B,Bromsgrove District Council,Surpluses/deficits on trading undertakings,Depot Services,Employees,Direct Employee Expenses,A10,Agency workers,30/08/2012,176631,"4,231.69",Revenue income and expenditure,Matrix SCM Ltd,9043,1,VN,201205,DW11,P1,
B,Bromsgrove District Council,Surpluses/deficits on trading undertakings,Depot Services,Employees,Direct Employee Expenses,A10,Agency workers,30/08/2012,176631,524.84,Revenue income and expenditure,Matrix SCM Ltd,9043,1,VN,201205,DW32,P1,
B,Bromsgrove District Council,Surpluses/deficits on trading undertakings,Internal Business Units and Support Services,Supplies and Services,Miscellaneous expenses,D99,Workflow only - must change code before saving,29/08/2012,176632,226.92,Revenue income and expenditure,Chubb Electronic Security Ltd,4717,1,VN,201205,ES20,P1,
B,Bromsgrove District Council,Surpluses/deficits on trading undertakings,Internal Business Units and Support Services,Supplies and Services,Miscellaneous expenses,D99,Workflow only - must change code before saving,29/08/2012,176633,223.46,Revenue income and expenditure,Chubb Electronic Security Ltd,4717,1,VN,201205,ES20,P1,
B,Bromsgrove District Council,Surpluses/deficits on trading undertakings,Internal Business Units and Support Services,Premise Related Expenditure,Fixtures and Fittings,B63,Internal fixtures/fittings - maint'ce,28/08/2012,176636,35.00,Revenue income and expenditure,Chubb Electronic Security Ltd,4717,1,VN,201205,ES20,P1,
B,Bromsgrove District Council,Cultural and Related Services,Community parks and open spaces,Premise Related Expenditure,Fixtures and Fittings,B63,Internal fixtures/fittings - maint'ce,30/08/2012,176639,288.00,Revenue income and expenditure,Imtech G&H,9989,2,VO,201205,RG02,P1,
B,Bromsgrove District Council,Cultural and Related Services,Outdoor sports and recreation facilities,Premise Related Expenditure,Fixtures and Fittings,B63,Internal fixtures/fittings - maint'ce,30/08/2012,176640,234.00,Revenue income and expenditure,Imtech G&H,9989,2,VO,201205,RG64,P1,
B,Bromsgrove District Council,Environmental Services,Cemeteries,Premise Related Expenditure,Fixtures and Fittings,B63,Internal fixtures/fittings - maint'ce,30/08/2012,176641,90.00,Revenue income and expenditure,Imtech G&H,9989,2,VO,201205,CE03,P1,
B,Bromsgrove District Council,Cultural and Related Services,Community parks and open spaces,Premise Related Expenditure,Fixtures and Fittings,B63,Internal fixtures/fittings - maint'ce,30/08/2012,176642,270.00,Revenue income and expenditure,Imtech G&H,9989,2,VO,201205,SP00,P1,
B,Bromsgrove District Council,Environmental Services,Cemeteries,Premise Related Expenditure,Fixtures and Fittings,B63,Internal fixtures/fittings - maint'ce,30/08/2012,176643,36.00,Revenue income and expenditure,Imtech G&H,9989,2,VO,201205,CE01,P1,
B,Bromsgrove District Council,Surpluses/deficits on trading undertakings,Internal Business Units and Support Services,Premise Related Expenditure,Fixtures and Fittings,B63,Internal fixtures/fittings - maint'ce,30/08/2012,176644,"4,617.00",Revenue income and expenditure,Imtech G&H,9989,2,VO,201205,ES20,P1,
B,Bromsgrove District Council,Central Services to the Public,Community Centres,Premise Related Expenditure,Fixtures and Fittings,B63,Internal fixtures/fittings - maint'ce,30/08/2012,176645,171.00,Revenue income and expenditure,Imtech G&H,9989,2,VO,201205,AH01,P1,
B,Bromsgrove District Council,Central Services to the Public,Registration of Electors,Supplies and Services,Communication and computing,D53,Postage/packaging,29/08/2012,176646,6.99,Revenue income and expenditure,HSS Products,6049,1,VO,201205,EL00,P1,
B,Bromsgrove District Council,Central Services to the Public,Registration of Electors,Supplies and Services,Miscellaneous expenses,D85,General expenses,29/08/2012,176646,107.60,Revenue income and expenditure,HSS Products,6049,1,VO,201205,EL00,P1,
B,Bromsgrove District Council,Environmental Services,Cemeteries,Supplies and Services,Services,D48,Contractors' fees/charges/SLA's,29/08/2012,176647,639.00,Revenue income and expenditure,Peter Price,7730,1,VO,201205,CE01,P4,
B,Bromsgrove District Council,Surpluses/deficits on trading undertakings,Depot Services,Supplies and Services,Miscellaneous expenses,D88,Miscellaneous expenses,29/08/2012,176648,25.80,Revenue income and expenditure,Mercia Waste Management Ltd,1433,1,VO,201205,DW32,P1,
B,Bromsgrove District Council,,,Supplies and Services,Services,D48,Contractors' fees/charges/SLA's,29/08/2012,176650,"7,722.20",Revenue income and expenditure,WRVS,3733,1,VO,201205,CM21,P4,
B,Bromsgrove District Council,Surpluses/deficits on trading undertakings,Depot Services,Transport Related Expenditure,Direct Transport Costs,C01,Vehicle repairs/maint'ce,29/08/2012,176651,11.11,Revenue income and expenditure,Central Bearings & Transmissions Ltd,3331,1,VO,201205,DW32,P1,
B,Bromsgrove District Council,Not BVACOP Service,Not BVACOP Sub Division,Current Assets,Stocks,300,Stock Movement,29/08/2012,176652,367.00,,Foxall Industrial Supplies Ltd,1857,1,VO,201205,XX611,P1,
B,Bromsgrove District Council,Surpluses/deficits on trading undertakings,Internal Business Units and Support Services,Supplies and Services,Catering,D22,Vending purchases/costs,29/08/2012,176653,22.00,Revenue income and expenditure,Blue Mountain Water,9003,1,VO,201205,IT00,P1,
B,Bromsgrove District Council,Surpluses/deficits on trading undertakings,Depot Services,Supplies and Services,"Equipment, furniture and materials",D06,Materials - purchased,29/08/2012,176656,99.72,Revenue income and expenditure,Sunlight Service Group,9560,1,VO,201205,DT41,P1,
B,Bromsgrove District Council,Not BVACOP Service,Not BVACOP Sub Division,Current Assets,Stocks,300,Stock Movement,29/08/2012,176657,196.60,,WasteParts UK Ltd,6508,1,VO,201205,XX611,P1,
B,Bromsgrove District Council,Surpluses/deficits on trading undertakings,Depot Services,Supplies and Services,Communication and computing,D53,Postage/packaging,29/08/2012,176657,8.00,Revenue income and expenditure,WasteParts UK Ltd,6508,1,VO,201205,DW11,P1,
B,Bromsgrove District Council,Surpluses/deficits on trading undertakings,Depot Services,Supplies and Services,"Equipment, furniture and materials",D06,Materials - purchased,30/08/2012,176658,316.80,Revenue income and expenditure,Sunlight Service Group,9560,1,VO,201205,DT41,P1,
B,Bromsgrove District Council,Planning and Development Services,Advice,Supplies and Services,Miscellaneous expenses,D88,Miscellaneous expenses,30/08/2012,176659,196.80,Revenue income and expenditure,TMP (UK) Ltd,1646,1,VO,201205,DC00,P1,
B,Bromsgrove District Council,Planning and Development Services,Advice,Supplies and Services,Miscellaneous expenses,D88,Miscellaneous expenses,30/08/2012,176660,269.60,Revenue income and expenditure,TMP (UK) Ltd,1646,1,VO,201205,DC00,P1,
B,Bromsgrove District Council,,,Premise Related Expenditure,Fixtures and Fittings,B63,Internal fixtures/fittings - maint'ce,30/08/2012,176668,54.00,Revenue income and expenditure,Imtech G&H,9989,2,VO,201205,MH04,P1,
B,Bromsgrove District Council,Cultural and Related Services,Museums and Gallaries,Premise Related Expenditure,Fixtures and Fittings,B63,Internal fixtures/fittings - maint'ce,31/08/2012,176669,216.00,Revenue income and expenditure,Imtech G&H,9989,2,VO,201205,MT91,P1,
B,Bromsgrove District Council,Surpluses/deficits on trading undertakings,Depot Services,Transport Related Expenditure,Direct Transport Costs,C01,Vehicle repairs/maint'ce,30/08/2012,176672,129.00,Revenue income and expenditure,Vehicle Weighing Solution Ltd,10045,1,VO,201205,DW11,P1,
B,Bromsgrove District Council,Not BVACOP Service,Not BVACOP Sub Division,Current Assets,Stocks,300,Stock Movement,30/08/2012,176675,"24,707.12",,Harvest Energy Ltd,9164,1,VO,201205,XX611,P1,
B,Bromsgrove District Council,Surpluses/deficits on trading undertakings,Depot Services,Supplies and Services,Miscellaneous expenses,D88,Miscellaneous expenses,30/08/2012,176676,280.00,Revenue income and expenditure,M D Carpentry & Building Contractors Ltd,1109,2,VO,201205,DW25,P1,
B,Bromsgrove District Council,Not BVACOP Service,Not BVACOP Sub Division,Current Assets,Stocks,300,Stock Movement,30/08/2012,176677,22.50,,Truckstop Hawkes (Egglaroy Ltd T/A),6329,1,VO,201205,XX611,P1,
B,Bromsgrove District Council,General Fund Housing Services,Other temporary Accommodation,Third Party Payments,Private Contractors,E71,BDHT - management fee,30/08/2012,176678,"3,562.94",Revenue income and expenditure,Bromsgrove District Housing Trust,2969,1,VO,201205,HG23,P1,
B,Bromsgrove District Council,General Fund Housing Services,Homelessness Administration,Third Party Payments,Private Contractors,E71,BDHT - management fee,30/08/2012,176679,"17,817.87",Revenue income and expenditure,Bromsgrove District Housing Trust,2969,1,VO,201205,HG08,P1,
B,Bromsgrove District Council,General Fund Housing Services,Housing Strategy,Third Party Payments,Private Contractors,E71,BDHT - management fee,30/08/2012,176680,"4,057.47",Revenue income and expenditure,Bromsgrove District Housing Trust,2969,1,VO,201205,HG20,P1,
B,Bromsgrove District Council,Not BVACOP Service,Not BVACOP Sub Division,Current Assets,Stocks,300,Stock Movement,30/08/2012,176681,185.90,,Spaldings (UK) Ltd,1600,1,VO,201205,XX611,P1,
B,Bromsgrove District Council,Surpluses/deficits on trading undertakings,Depot Services,Supplies and Services,Communication and computing,D51,Printing and stationery,30/08/2012,176683,68.03,Revenue income and expenditure,Office Depot UK Ltd,6249,1,VO,201205,DP02,P1,
B,Bromsgrove District Council,Surpluses/deficits on trading undertakings,Depot Services,Supplies and Services,Communication and computing,D51,Printing and stationery,30/08/2012,176684,52.21,Revenue income and expenditure,Office Depot UK Ltd,6249,1,VO,201205,CD20,P1,
B,Bromsgrove District Council,Not BVACOP Service,Not BVACOP Sub Division,Current Assets,Stocks,300,Stock Movement,30/08/2012,176691,151.56,,Ultrasol,5459,1,VO,201205,XX611,P1,
B,Bromsgrove District Council,Surpluses/deficits on trading undertakings,Internal Business Units and Support Services,Supplies and Services,Communication and computing,D56,Computer - hardware,30/08/2012,176692,56.09,Revenue income and expenditure,Black Box Network Services UK Ltd,8951,1,VO,201205,IT12,P1,
B,Bromsgrove District Council,Highways and transport services,Off-street Parking,Premise Related Expenditure,"Repairs, alterations and maint. of buildings",B03,Internal repair/maint. (reg'd for gross pay't),30/08/2012,176693,276.46,Revenue income and expenditure,Thyssenkrupp Elevator UK Ltd,3658,1,VO,201205,CP01,P1,
B,Bromsgrove District Council,Surpluses/deficits on trading undertakings,Internal Business Units and Support Services,Premise Related Expenditure,Fixtures and Fittings,B63,Internal fixtures/fittings - maint'ce,30/08/2012,176695,400.00,Revenue income and expenditure,Taurus Environmental Ltd,1635,1,VO,201205,ES20,P1,
B,Bromsgrove District Council,Not BVACOP Service,Not BVACOP Sub Division,Current Assets,Stocks,300,Stock Movement,30/08/2012,176696,"5,449.80",,Craemer  UK Limited,2583,1,VO,201205,XX611,P1,
B,Bromsgrove District Council,Not BVACOP Service,Not BVACOP Sub Division,Current Assets,Stocks,300,Stock Movement,30/08/2012,176701,13.00,,Bromsgrove Motor Factors,1091,1,VO,201205,XX611,P1,
B,Bromsgrove District Council,Surpluses/deficits on trading undertakings,Depot Services,Transport Related Expenditure,Direct Transport Costs,C01,Vehicle repairs/maint'ce,30/08/2012,176702,7.39,Revenue income and expenditure,Bromsgrove Motor Factors,1091,1,VO,201205,DW21,P1,
B,Bromsgrove District Council,Surpluses/deficits on trading undertakings,Internal Business Units and Support Services,Supplies and Services,Catering,D22,Vending purchases/costs,30/08/2012,176706,260.00,Revenue income and expenditure,Complete Vending Services Ltd,1155,1,VO,201205,ES36,P1,
B,Bromsgrove District Council,Surpluses/deficits on trading undertakings,Internal Business Units and Support Services,Supplies and Services,Catering,D22,Vending purchases/costs,30/08/2012,176707,260.00,Revenue income and expenditure,Complete Vending Services Ltd,1155,1,VO,201205,ES36,P1,
B,Bromsgrove District Council,Planning and Development Services,Supplementary planning guidance,Supplies and Services,Services,D47,Consultants' fees,31/08/2012,176711,"6,062.83",Revenue income and expenditure,Drivers Jonas Deloitte,10085,1,VP,201205,LP01,P1,
B,Bromsgrove District Council,,,Premise Related Expenditure,Cleaning and domestic supplies,B80,Contract cleaning,30/08/2012,176713,18.00,Revenue income and expenditure,We Clean Ltd,2966,1,VO,201205,CC01,P1,
B,Bromsgrove District Council,Not BVACOP Service,Not BVACOP Sub Division,Current Assets,Stocks,300,Stock Movement,30/08/2012,176715,"11,954.40",,Craemer  UK Limited,2583,1,VO,201205,XX611,P1,
B,Bromsgrove District Council,Not BVACOP Service,Not BVACOP Sub Division,Current Assets,Stocks,300,Stock Movement,30/08/2012,176716,"11,954.40",,Craemer  UK Limited,2583,1,VO,201205,XX611,P1,
B,Bromsgrove District Council,Surpluses/deficits on trading undertakings,Depot Services,Supplies and Services,Communication and computing,D56,Computer - hardware,08/08/2012,2063946,121.99,Revenue income and expenditure,National Westminster Bank plc,0,,PC,201205,BT02,P5,GPC  July 12 - Just host .com
B,Bromsgrove District Council,,,Supplies and Services,Services,D49,Miscellaneous services,30/08/2012,2064147,657.00,Revenue income and expenditure,National Westminster Bank plc,0,,PC,201205,RB01,P4,GPC  Aug 12 - HM Courts
B,Bromsgrove District Council,,,Supplies and Services,Catering,D23,Catering (incl.food purchases),30/08/2012,2064147,53.25,Revenue income and expenditure,National Westminster Bank plc,0,,PC,201205,CD61,P4,GPC  Aug 12 - WM Morrisons
B,Bromsgrove District Council,Surpluses/deficits on trading undertakings,Depot Services,Supplies and Services,Miscellaneous expenses,D85,General expenses,30/08/2012,2064147,199.00,Revenue income and expenditure,National Westminster Bank plc,0,,PC,201205,BT01,P6,GPC  Aug 12 - Monster UK
B,Bromsgrove District Council,,,Supplies and Services,Catering,D23,Catering (incl.food purchases),30/08/2012,2064147,14.86,Revenue income and expenditure,National Westminster Bank plc,0,,PC,201205,CD41,P4,GPC  Aug 12 - Co-op
B,Bromsgrove District Council,,,Supplies and Services,Catering,D23,Catering (incl.food purchases),30/08/2012,2064147,2.92,Revenue income and expenditure,National Westminster Bank plc,0,,PC,201205,CD61,P6,GPC  Aug 12 - WM Morrisons
B,Bromsgrove District Council,Surpluses/deficits on trading undertakings,Depot Services,Transport Related Expenditure,Direct Transport Costs,C07,Licences,05/09/2012,2064202,217.50,Revenue income and expenditure,National Westminster Bank plc,0,,PC,201205,DW11,P5,GPC  Aug12 - DVLA
B,Bromsgrove District Council,Surpluses/deficits on trading undertakings,Depot Services,Transport Related Expenditure,Direct Transport Costs,C07,Licences,05/09/2012,2064202,202.50,Revenue income and expenditure,National Westminster Bank plc,0,,PC,201205,DS62,P5,GPC  Aug12 - DVLA
B,Bromsgrove District Council,Surpluses/deficits on trading undertakings,Depot Services,Supplies and Services,Services,D43,Training fees,05/09/2012,2064202,183.75,Revenue income and expenditure,National Westminster Bank plc,0,,PC,201205,DP02,P3,GPC  Aug12 - DSA
B,Bromsgrove District Council,Environmental Services,Community Safety (Crime Reduction),Transport Related Expenditure,Direct Transport Costs,C07,Licences,05/09/2012,2064202,217.50,Revenue income and expenditure,National Westminster Bank plc,0,,PC,201205,CS21,P5,GPC  Aug12 - DVLA
B,Bromsgrove District Council,Not BVACOP Service,Not BVACOP Sub Division,Current Assets,Stocks,300,Stock Movement,05/09/2012,2064202,14.63,,National Westminster Bank plc,0,,PC,201205,XX611,P6,GPC  Aug12 - Ron Smith
B,Bromsgrove District Council,Surpluses/deficits on trading undertakings,Depot Services,Transport Related Expenditure,Direct Transport Costs,C01,Vehicle repairs/maint'ce,05/09/2012,2064202,63.56,Revenue income and expenditure,National Westminster Bank plc,0,,PC,201205,DW32,P6,GPC  Aug12 - Ron Smith
B,Bromsgrove District Council,Surpluses/deficits on trading undertakings,Depot Services,Supplies and Services,Communication and computing,D57,Computer - software,05/09/2012,2064202,732.50,Revenue income and expenditure,National Westminster Bank plc,0,,PC,201205,DT41,P6,GPC Aug 12 - Novadata
B,Bromsgrove District Council,Surpluses/deficits on trading undertakings,Depot Services,Transport Related Expenditure,Direct Transport Costs,C07,Licences,05/09/2012,2064202,652.50,Revenue income and expenditure,National Westminster Bank plc,0,,PC,201205,DS61,P5,GPC  Aug12 - DVLA
B,Bromsgrove District Council,Not BVACOP Service,Not BVACOP Sub Division,Current Assets,Stocks,300,Stock Movement,05/09/2012,2064202,192.40,,National Westminster Bank plc,0,,PC,201205,XX611,P6,GPC  Aug12 - Wardsflex
B,Bromsgrove District Council,Surpluses/deficits on trading undertakings,Depot Services,Supplies and Services,"Equipment, furniture and materials",D01,Equipment - purchase,05/09/2012,2064202,153.15,Revenue income and expenditure,National Westminster Bank plc,0,,PC,201205,DP02,P6,GPC  Aug12 - Power Tools
B,Bromsgrove District Council,Surpluses/deficits on trading undertakings,Depot Services,Supplies and Services,"Equipment, furniture and materials",D01,Equipment - purchase,05/09/2012,2064202,10.82,Revenue income and expenditure,National Westminster Bank plc,0,,PC,201205,DW11,P6,GPC  Aug12 - Staples
B,Bromsgrove District Council,Surpluses/deficits on trading undertakings,Depot Services,Employees,Indirect Employee Expenses,A23,Training for professional qualifications,05/09/2012,2064202,17.50,Revenue income and expenditure,National Westminster Bank plc,0,,PC,201205,DP02,P3,GPC  Aug12 - DSA
B,Bromsgrove District Council,Surpluses/deficits on trading undertakings,Depot Services,Transport Related Expenditure,Direct Transport Costs,C07,Licences,05/09/2012,2064202,435.00,Revenue income and expenditure,National Westminster Bank plc,0,,PC,201205,DW21,P5,GPC  Aug12 - DVLA
B,Bromsgrove District Council,Surpluses/deficits on trading undertakings,Depot Services,Supplies and Services,"Equipment, furniture and materials",D01,Equipment - purchase,01/08/2012,7049653,38.00,Revenue income and expenditure,D V L A,3746,5,AP,201205,DW11,P4,
B,Bromsgrove District Council,Surpluses/deficits on trading undertakings,Depot Services,Supplies and Services,"Equipment, furniture and materials",D01,Equipment - purchase,01/08/2012,7049653,19.00,Revenue income and expenditure,D V L A,3746,5,AP,201205,DW21,P4,
B,Bromsgrove District Council,Surpluses/deficits on trading undertakings,Depot Services,Supplies and Services,"Equipment, furniture and materials",D01,Equipment - purchase,01/08/2012,7049653,19.00,Revenue income and expenditure,D V L A,3746,5,AP,201205,DT41,P4,
B,Bromsgrove District Council,General Fund Housing Services,Housing Strategy,Premise Related Expenditure,Rents,B30,Rents,01/08/2012,7049654,395.00,Revenue income and expenditure,Ashleigh Properties Ltd,6241,1,AP,201205,HG51,P4,
B,Bromsgrove District Council,,,Supplies and Services,Services,D49,Miscellaneous services,08/08/2012,7049658,6.00,Revenue income and expenditure,HM Courts & Tribunals Service,9901,3,AP,201205,RB02,P4,
B,Bromsgrove District Council,Surpluses/deficits on trading undertakings,Depot Services,Transport Related Expenditure,Direct Transport Costs,C55,Vehicle repairs - accidental damage,08/08/2012,7049661,44.50,Revenue income and expenditure,REDACTED PERSONAL DATA,10077,3,AP,201205,DW32,0,
B,Bromsgrove District Council,Not BVACOP Service,Not BVACOP Sub Division,Capital Expenditure,Operational Land and Buildings,X05,Construction work for DFG's/Dis Home Rep,15/08/2012,7049668,"3,315.00",Capital income and expenditure,Sanders Construction,1746,2,AP,201205,CAPP,P5,
B,Bromsgrove District Council,Not BVACOP Service,Not BVACOP Sub Division,External Funding,External Funding Support,M04,INCOME S.106 receipts,21/08/2012,7049684,"10,000.00",Capital income and expenditure,Taylor Wimpey PLC,10088,3,AP,201205,CAPC,0,
B,Bromsgrove District Council,Surpluses/deficits on trading undertakings,Depot Services,Supplies and Services,"Equipment, furniture and materials",D01,Equipment - purchase,30/08/2012,7049693,57.00,Revenue income and expenditure,D V L A,3746,5,AP,201205,DW11,P4,
B,Bromsgrove District Council,Surpluses/deficits on trading undertakings,Internal Business Units and Support Services,Premise Related Expenditure,Energy Costs,B22,Electricity,08/07/2012,2063930,187.58,Revenue income and expenditure,British Gas,0,,JN,201205,ES20,P6,
B,Bromsgrove District Council,Surpluses/deficits on trading undertakings,Internal Business Units and Support Services,Supplies and Services,Services,D49,Miscellaneous services,08/08/2012,2063941,14.00,Revenue income and expenditure,Land Registry,0,,JN,201205,LS00,P3,
B,Bromsgrove District Council,General Fund Housing Services,Housing Strategy,Supplies and Services,Miscellaneous expenses,D88,Miscellaneous expenses,08/08/2012,2063941,151.00,Revenue income and expenditure,Land Registry,0,,JN,201205,HG20,P3,
B,Bromsgrove District Council,,,Supplies and Services,Miscellaneous expenses,D88,Miscellaneous expenses,08/08/2012,2063941,12.00,Revenue income and expenditure,Land Registry,0,,JN,201205,RB03,P3,
B,Bromsgrove District Council,Surpluses/deficits on trading undertakings,Internal Business Units and Support Services,Supplies and Services,Services,D49,Miscellaneous services,08/10/2012,2063970,8.00,Revenue income and expenditure,Land Registry,0,,JN,201205,LS00,P3,
B,Bromsgrove District Council,Non-Distributable Costs,Non-Distributable Overheads,Employees,Indirect Employee Expenses,A20,Unapportionable employee overheads,08/10/2012,2063970,"71,708.32",Revenue income and expenditure,Worcs CC LGPS,0,,JN,201205,ND00,0,
B,Bromsgrove District Council,,,Supplies and Services,Services,D49,Miscellaneous services,08/10/2012,2063970,20.00,Revenue income and expenditure,Land Registry,0,,JN,201205,CM11,P3,
B,Bromsgrove District Council,Planning and Development Services,Advice,Supplies and Services,Miscellaneous expenses,D88,Miscellaneous expenses,08/10/2012,2063970,26.00,Revenue income and expenditure,Land Registry,0,,JN,201205,DC00,P3,
B,Bromsgrove District Council,,,Supplies and Services,Services,D49,Miscellaneous services,16/08/2012,2064004,5.00,Revenue income and expenditure,Land Registry,0,,JN,201205,CM11,P3,
B,Bromsgrove District Council,,,Supplies and Services,Miscellaneous expenses,D88,Miscellaneous expenses,16/08/2012,2064004,16.00,Revenue income and expenditure,Land Registry,0,,JN,201205,RB03,P3,
B,Bromsgrove District Council,Surpluses/deficits on trading undertakings,Internal Business Units and Support Services,Supplies and Services,Services,D49,Miscellaneous services,16/08/2012,2064006,193.77,Revenue income and expenditure,HSBC,0,,JN,201205,FS07,P3,
B,Bromsgrove District Council,,,Supplies and Services,Services,D49,Miscellaneous services,16/08/2012,2064006,"1,738.56",Revenue income and expenditure,HSBC,0,,JN,201205,RB01,P3,
B,Bromsgrove District Council,Surpluses/deficits on trading undertakings,Internal Business Units and Support Services,Supplies and Services,Services,D49,Miscellaneous services,17/08/2012,2064031,"1,637.93",Revenue income and expenditure,HSBC,0,,JN,201205,FS07,P3,
B,Bromsgrove District Council,,,Supplies and Services,Services,D49,Miscellaneous services,22/08/2012,2064062,4.00,Revenue income and expenditure,Land Registry,0,,JN,201205,CM11,P3,
B,Bromsgrove District Council,Surpluses/deficits on trading undertakings,Internal Business Units and Support Services,Supplies and Services,Services,D49,Miscellaneous services,22/08/2012,2064062,9.00,Revenue income and expenditure,Land Registry,0,,JN,201205,LS00,P3,
B,Bromsgrove District Council,General Fund Housing Services,Housing Strategy,Supplies and Services,Miscellaneous expenses,D88,Miscellaneous expenses,22/08/2012,2064062,21.00,Revenue income and expenditure,Land Registry,0,,JN,201205,HG20,P3,
B,Bromsgrove District Council,,,Supplies and Services,Miscellaneous expenses,D88,Miscellaneous expenses,22/08/2012,2064062,4.00,Revenue income and expenditure,Land Registry,0,,JN,201205,RB03,P3,
B,Bromsgrove District Council,General Fund Housing Services,Housing Strategy,Supplies and Services,Miscellaneous expenses,D88,Miscellaneous expenses,28/08/2012,2064086,105.00,Revenue income and expenditure,Land Registry,0,,JN,201205,HG20,P3,
B,Bromsgrove District Council,Surpluses/deficits on trading undertakings,Internal Business Units and Support Services,Supplies and Services,Services,D49,Miscellaneous services,28/08/2012,2064086,4.00,Revenue income and expenditure,Land Registry,0,,JN,201205,LS00,P3,
B,Bromsgrove District Council,Cultural and Related Services,Community parks and open spaces,Supplies and Services,Miscellaneous expenses,D85,General expenses,28/08/2012,2064086,4.00,Revenue income and expenditure,Land Registry,0,,JN,201205,RG01,P3,
B,Bromsgrove District Council,General Fund Housing Services,Housing Strategy,Supplies and Services,Miscellaneous expenses,D88,Miscellaneous expenses,30/08/2012,2064144,56.00,Revenue income and expenditure,Land Registry,0,,JN,201205,HG20,P3,
B,Bromsgrove District Council,,,Supplies and Services,Miscellaneous expenses,D88,Miscellaneous expenses,30/08/2012,2064144,8.00,Revenue income and expenditure,Land Registry,0,,JN,201205,RB03,P3,
B,Bromsgrove District Council,,,Supplies and Services,Miscellaneous expenses,D88,Miscellaneous expenses,30/08/2012,2064144,4.00,Revenue income and expenditure,Land Registry,0,,JN,201205,RB02,P3,
,,,,,,,,,,"939,337.05",,,,,,,,,
